Workbook

Sheet Instructions
A2: Before you begin, ensure the "Solver" function is enabled in your version of Microsoft Excel.
A3: To do this follow these steps:
A5: 1. In Microsoft Excel, go to File > Options.
A6: 2. Click Add-Ins, and then in the Manage box, select Excel Add-ins.
A7: 3. Click Go.
A8: 4. In the Add-Ins available box, select the Solver Add-in check box, and then click OK.
A9: If the Solver Add-in is not listed in the Add-Ins available box, click Browse to locate the add-in.
A10: If you get prompted that the Solver Add-in is not currently installed on your computer, click Yes to install it.
A11: 5. After you load the Solver Add-in, the Solver command is available in the Analyze group on the Data tab.
A14: [1] Data pre-processing
A16: Before IR data can be read-in, it must be interpolated, normalized and baseline corrected. Interpolation must be done at 1 cm-1 spacing.
A17: Data must be thickness normalized and all intensity values converted to absorption coefficients (cm-1).
A18: We recommend performing normalization and baseline corrections using the procedure outlined in Howell et al. 2012a/b (see Info Tab). This can be done manually or with the DiaMap excel spreadsheet.
A20: [2] Read-in data
A22: Interpolated, normalized and baseline corrected data can be pasted into the "raw data" coloumn (H10 in Deconvolution tab)
A25: [3] Deconvolution
A27: Deconvolution by least-squares fitting of the N-region is done using the "Solver" function in excel.
A28: The C-, A-, X-, B-, D- and Y-center component of the fit can be refined by adding the corresponding cells (D2 to I2, respectively).
A29: Instead of deleting (and then re-adding) each of these cells to the solver function, once can simply de-activate cell (defects) that they do not wish to include in the refinement by changing the condition of those cells.
A30: For example, one can change $D$2 = 0 (not active) to $D$2 ≥ 0 to activate refinment of the C-center component.
A32: When deconvoluting the spectra of diamonds that contain Y-centers, it is recommended that one contrains the C- and X-center components to the 1344 cm-1 and 1332 cm-1 peak heights, respectively.
A33: This can be done by adding the O5 and O8 cells to the solver function as $O$5 = 0 and $O$8 = 0
A34: However, strain can cause inhomegenous width and intensity changes of the 1344 cm-1 peak, if constraining the C-center component to the 1344cm-1 peak intensity does not produce satisfactory
A35: fits from 1150-1130 cm-1, refine this component freely.
A37: [4] Results
A39: All deconvolution results are given in the Deconvolution tab and in the Graph and Results Tab including a graph of the fitting result and the residuals
A41: To evaluate the final fit-quality, a "sum of squared residuals" and a "cosine similarity" value is automatically calculated. See Day et al. 2024 for more details.
A44: [5] Mantle Residence Time and Temperature (Residence T/t Tab)
A46: One can plot the N-aggregation state of their diamond (%IaA or %IaB) against isotherms (or isochrons) calcuated using experimentally determined C to A and A to B aggregation rates
A48: To do this, one must use the "C to A" or "A to B" tabs and manually enter temperature (in C°) and time (in Ma) for each isotherm (or isochron)
A50: In both of these tabs, several isotherms (isochrons) have been set-up (cells C45/46 to J45/46) and users can add additional datapoints in coloumns M and N.

Sheet Deconvolution
A1: Sample name | C1: Defect | D1: C (N0) µ(1130cm-1) | E1: A (N20) µ(1282cm-1) | F1: X (N+) µ(1332cm-1) | G1: B (VN4) µ(1282cm-1) | H1: D µ(1282cm-1) | I1: Y factor | J1: µ(1145-1150cm-1) | R1: © Diamond Trading Company (Pty) Ltd. 2002
A2: Example Type Ib + IaA | D2: 2.34 | E2: 1.30 | F2: 0.25 | G2: 0.00 | H2: 0.00 | I2: 0.88 | J2: =AVERAGE(Q155:Q160) -> 0.64 | R2: Y-center spectrum added following Hainschwang et al. 2012 and Day et al. 2024
M3: Constrain µ(1130cm-1) based on 1344 cm-1 peak height
C4: Conc. (at.ppm) | D4: NC | E4: NA | F4: NX | G4: NB | I4: NY | J4: %IaA | K4: Ntot | M4: raw 1344 cm-1 | N4: fit 1344 cm-1 | O4: (fit-raw)2
D5: =25*D2 -> 58.42 | E5: =16.5*E2 -> 21.47 | F5: =5.5*F2 -> 1.40 | G5: =79.4*G2 -> 0.00 | I5: =I7*J2 -> 16.10 | J5: =E5/(D5+E5+F5+I5)*100 -> 22.05 | K5: =D5+E5+F5+G5+I5 -> 97.39 | M5: =H354 -> 1.507541456 | N5: =I354 -> 1.507470398 | O5: =(N5-M5)^2 -> 5.049318999e-09 | P5: add cell O5 to solver (minmize to $O$5 = 0)
I6: Y abs.coeff | J6: %IaB | M6: Constrain µ(1332cm-1) based on 1332 cm-1 peak height
I7: 25 | J7: =G5/(G5+E5)*100 -> 0 | M7: raw 1332 cm-1 | N7: fit 1332 cm-1 | O7: (fit-raw)2
D8: fit range | E8: 1001 to 1399 | M8: =H342 -> 0.964592865 | N8: =I342 -> 0.9644364351 | O8: =(N8-M8)^2 -> 2.447031685e-08 | P8: add cell O8 to solver (minmize to $O$8 = 0)
H9: input data here | K9: Set Solver objective to cell K11 or K13
A10: wn (cm-1) | B10: C norm | C10: A norm | D10: X norm | E10: B norm | F10: D norm | G10: Y norm | H10: raw data | I10: fit | J10: squares | K10: sum of squares | L10: C comp. | M10: A comp. | N10: X comp. | O10: B comp. | P10: D comp. | Q10: Y comp | R10: Residual
A11: 1001 | B11: 0.1677789281 | C11: 0.02771197006 | D11: 0.2274106295 | E11: 0.7376636691 | F11: 0 | G11: 0.072209068 | H11: 0.496336915 | I11: =($D$2*B11)+($E$2*C11)+($F$2*D11)+($G$2*E11)+($H$2*F11)+($I$2*G11) -> 0.549198771 | J11: =(H11-I11)^2 -> 0.002794375815 | K11: =SUM(J11:J409) -> 0.5099219393 | L11: =$D$2*B11 -> 0.3920813877 | M11: =$E$2*C11 -> 0.036062602 | N11: =$F$2*D11 -> 0.05768703451 | O11: =$G$2*E11 -> 0 | P11: =$H$2*F11 -> 0 | Q11: =$I$2*G11 -> 0.06336774672 | R11: =H11-I11 -> -0.05286185595 | U11: 0 | V11: =U11/$U$292 -> 0
A12: 1002 | B12: 0.1667657227 | C12: 0.03000837089 | D12: 0.2190023108 | E12: 0.7544468326 | F12: 0 | G12: 0.074971545 | H12: 0.5023583882 | I12: =($D$2*B12)+($E$2*C12)+($F$2*D12)+($G$2*E12)+($H$2*F12)+($I$2*G12) -> 0.5501107165 | J12: =(H12-I12)^2 -> 0.002280284852 | K12: cosine similarity | L12: 0.3897136351 | M12: 0.03905099255 | N12: 0.05555410442 | O12: =$G$2*E12 -> 0 | P12: =$H$2*F12 -> 0 | Q12: 0.06579198439 | R12: -0.04775232824 | U12: 0 | V12: =U12/$U$292 -> 0
A13: 1003 | B13: 0.1681998314 | C13: 0.0254723588 | D13: 0.2165860418 | E13: 0.7692289279 | F13: 0 | G13: 0.071811465 | H13: 0.5069466408 | I13: 0.5441731058 | J13: 0.001385809701 | K13: =(1 - (SUMPRODUCT(H$11:H$409,I11:I409)/(SQRT(SUMSQ(I11:I409))*SQRT(SUMSQ($H$11:$H$409)))))*100 -> 0.02144152574 | L13: 0.3930649937 | M13: 0.03314811382 | N13: 0.05494117181 | O13: 0 | P13: 0 | Q13: 0.06301882647 | R13: -0.03722646506 | U13: 0 | V13: 0
A14: 1004 | B14: 0.1714045411 | C14: 0.03013939836 | D14: 0.2177613028 | E14: 0.7900275071 | F14: 0 | G14: 0.076380427 | H14: 0.5102105734 | I14: 0.5620432216 | J14: 0.002686623422 | L14: 0.400554057 | M14: 0.03922150339 | N14: 0.05523929913 | O14: 0 | P14: 0 | Q14: 0.06702836204 | R14: -0.05183264823 | U14: 0 | V14: 0
A15: 1005 | B15: 0.1693980635 | C15: 0.0292498326 | D15: 0.2164107396 | E15: 0.7928305146 | F15: 0 | G15: 0.080949388 | H15: 0.5230860908 | I15: 0.5598636124 | J15: 0.001352586093 | L15: 0.3958651337 | M15: 0.03806387887 | N15: 0.05489670306 | O15: 0 | P15: 0 | Q15: 0.07103789673 | R15: -0.03677752158 | U15: 0 | V15: 0
A16: 1006 | B16: 0.172424391 | C16: 0.02263490377 | D16: 0.2200735871 | E16: 0.7923583329 | F16: 0 | G16: 0.083439851 | H16: 0.5344406641 | I16: 0.5614422465 | J16: 0.0007290854557 | L16: 0.4029373369 | M16: 0.02945562962 | N16: 0.05582585404 | O16: 0 | P16: 0 | Q16: 0.07322342596 | R16: -0.02700158247 | U16: 0 | V16: 0
A17: 1007 | B17: 0.1728066482 | C17: 0.02758614734 | D17: 0.2150583882 | E17: 0.8015679621 | F17: 0 | G17: 0.084087118 | H17: 0.5405431058 | I17: 0.5680745901 | J17: 0.0007579826235 | L17: 0.4038306312 | M17: 0.0358988643 | N17: 0.0545536534 | O17: 0 | P17: 0 | Q17: 0.0737914412 | R17: -0.02753148422 | U17: 0 | V17: 0
A18: 1008 | B18: 0.175811144 | C18: 0.03142725125 | D18: 0.2165922314 | E18: 0.8127496177 | F18: 0 | G18: 0.084734385 | H18: 0.5474797959 | I18: 0.5810514481 | J18: 0.001127055826 | L18: 0.4108518162 | M18: 0.04089743354 | N18: 0.05494274191 | O18: 0 | P18: 0 | Q18: 0.07435945645 | R18: -0.03357165212 | U18: 0 | V18: 0
A19: 1009 | B19: 0.1754116656 | C19: 0.02544692163 | D19: 0.2157658556 | E19: 0.8192634565 | F19: 0 | G19: 0.085047974 | H19: 0.5485667033 | I19: 0.5724010546 | J19: 0.0005680763027 | L19: 0.4099182777 | M19: 0.03311501149 | N19: 0.05473311596 | O19: 0 | P19: 0 | Q19: 0.07463464942 | R19: -0.02383435132 | U19: 0 | V19: 0
A20: 1010 | B20: 0.1746912212 | C20: 0.02633587604 | D20: 0.2069052859 | E20: 0.8269423517 | F20: 0 | G20: 0.08490077 | H20: 0.5574906817 | I20: 0.5694974498 | J20: 0.0001441624781 | L20: 0.4082346763 | M20: 0.03427184043 | N20: 0.05248546381 | O20: 0 | P20: 0 | Q20: 0.07450546917 | R20: -0.01200676801 | U20: 0 | V20: 0
A21: 1011 | B21: 0.1751179553 | C21: 0.02907453173 | D21: 0.2071228147 | E21: 0.8241744147 | F21: 0 | G21: 0.085488066 | H21: 0.5576689316 | I21: 0.5746291622 | J21: 0.000287649422 | L21: 0.4092319083 | M21: 0.03783575344 | N21: 0.05254064414 | O21: 0 | P21: 0 | Q21: 0.0750208563 | R21: -0.0169602306 | U21: 0 | V21: 0
A22: 1012 | B22: 0.1778810826 | C22: 0.02279601963 | D22: 0.2092158508 | E22: 0.8192413455 | F22: 0 | G22: 0.086898397 | H22: 0.5707878053 | I22: 0.5746844246 | J22: 1.518364224e-05 | L22: 0.4156890409 | M22: 0.0296652956 | N22: 0.05307158258 | O22: 0 | P22: 0 | Q22: 0.07625850553 | R22: -0.003896619334 | U22: 0 | V22: 0
A23: 1013 | B23: 0.1791111807 | C23: 0.02392979546 | D23: 0.2167496527 | E23: 0.8043946649 | F23: 0 | G23: 0.089180658 | H23: 0.5771315546 | I23: 0.5829483681 | J23: 3.38353184e-05 | L23: 0.4185636485 | M23: 0.03114071963 | N23: 0.05498267482 | O23: 0 | P23: 0 | Q23: 0.07826132513 | R23: -0.005816813423 | U23: 0 | V23: 0
A24: 1014 | B24: 0.1816595171 | C24: 0.02965320882 | D24: 0.2140842194 | E24: 0.7986902985 | F24: 0 | G24: 0.095584229 | H24: 0.5886936124 | I24: 0.6012950209 | J24: 0.000158795496 | L24: 0.4245188378 | M24: 0.03858880713 | N24: 0.05430653692 | O24: 0 | P24: 0 | Q24: 0.08388083909 | R24: -0.01260140849 | U24: 0 | V24: 0
A25: 1015 | B25: 0.1833160104 | C25: 0.0249174005 | D25: 0.2222550651 | E25: 0.7861900245 | F25: 0 | G25: 0.094712964 | H25: 0.5928791515 | I25: 0.6003112912 | J25: 5.523670037e-05 | L25: 0.4283898851 | M25: 0.03242592624 | N25: 0.05637922747 | O25: 0 | P25: 0 | Q25: 0.08311625229 | R25: -0.00743213969 | U25: 0 | V25: 0
A26: 1016 | B26: 0.1851747515 | C26: 0.02266246415 | D26: 0.2288542426 | E26: 0.7755658359 | F26: 0 | G26: 0.093841698 | H26: 0.6058227789 | I26: 0.6026299581 | J26: 1.019410473e-05 | L26: 0.432733564 | M26: 0.02949149495 | N26: 0.05805323444 | O26: 0 | P26: 0 | Q26: 0.08235166462 | R26: 0.003192820811 | U26: 0 | V26: 0
A27: 1017 | B27: 0.1868540256 | C27: 0.02629071865 | D27: 0.2371620153 | E27: 0.7572424336 | F27: 0 | G27: 0.092970433 | H27: 0.6092526782 | I27: 0.6126186602 | J27: 1.132983477e-05 | L27: 0.4366578478 | M27: 0.03421307548 | N27: 0.06016065911 | O27: 0 | P27: 0 | Q27: 0.08158707783 | R27: -0.003365981992 | U27: 0 | V27: 0
A28: 1018 | B28: 0.192563883 | C28: 0.02363368662 | D28: 0.2347871477 | E28: 0.7378990742 | F28: 0 | G28: 0.094510198 | H28: 0.6207794067 | I28: 0.6232530972 | J28: 6.119144639e-06 | L28: 0.4500011731 | M28: 0.03075538234 | N28: 0.05955822874 | O28: =$G$2*E28 -> 0 | P28: =$H$2*F28 -> 0 | Q28: 0.08293831308 | R28: -0.00247369049 | U28: 0 | V28: =U28/$U$292 -> 0
A29: 1019 | B29: 0.1932947008 | C29: 0.02049690076 | D29: 0.2392545012 | E29: 0.7290470136 | F29: 0 | G29: 0.096081289 | H29: 0.6338966047 | I29: 0.6233908807 | J29: 0.0001103702363 | L29: 0.451709016 | M29: 0.02667336797 | N29: 0.06069145798 | O29: 0 | P29: 0 | Q29: 0.08431703877 | R29: 0.01050572398 | U29: 0 | V29: 0
A30: 1020 | B30: 0.1945397828 | C30: 0.02832736126 | D30: 0.2478665255 | E30: 0.7212432166 | F30: 0 | G30: 0.096113844 | H30: 0.6421167897 | I30: 0.6387037419 | J30: 1.164889545e-05 | L30: 0.4546186392 | M30: 0.03686343313 | N30: 0.06287606185 | O30: 0 | P30: 0 | Q30: 0.08434560771 | R30: 0.003413047824 | U30: 0 | V30: 0
A31: 1021 | B31: 0.195758965 | C31: 0.02679356339 | D31: 0.2546358472 | E31: 0.7090342822 | F31: 0 | G31: 0.096130859 | H31: 0.6478282559 | I31: 0.6412889519 | J31: 4.276249602e-05 | L31: 0.4574677377 | M31: 0.03486744575 | N31: 0.06459322915 | O31: 0 | P31: 0 | Q31: 0.08436053939 | R31: 0.00653930394 | U31: 0 | V31: 0
A32: 1022 | B32: 0.1998260248 | C32: 0.02238553026 | D32: 0.2594494725 | E32: 0.6996568007 | F32: 0 | G32: 0.0965813 | H32: 0.6557053392 | I32: 0.6466732565 | J32: 8.157851818e-05 | L32: 0.4669720208 | M32: 0.02913111073 | N32: 0.06581429683 | O32: 0 | P32: 0 | Q32: 0.08475582812 | R32: 0.009032082716 | U32: 0 | V32: 0
A33: 1023 | B33: 0.2022565924 | C33: 0.0253661489 | D33: 0.2670967498 | E33: 0.6841534903 | F33: 0 | G33: 0.098662252 | H33: 0.6703518186 | I33: 0.6599980573 | J33: 0.0001072003735 | L33: 0.4726519969 | M33: 0.03300989898 | N33: 0.06775417426 | O33: 0 | P33: 0 | Q33: 0.08658198712 | R33: 0.01035376132 | U33: 0 | V33: 0
A34: 1024 | B34: 0.2044394182 | C34: 0.0266693021 | D34: 0.2752271571 | E34: 0.6679431055 | F34: 0 | G34: 0.092207148 | H34: 0.6790461469 | I34: 0.6631926238 | J34: 0.0002513341966 | L34: 0.4777530271 | M34: 0.03470573998 | N34: 0.06981660681 | O34: 0 | P34: 0 | Q34: 0.0809172499 | R34: 0.01585352316 | U34: 0 | V34: 0
A35: 1025 | B35: 0.2065210184 | C35: 0.02304673151 | D35: 0.2744569688 | E35: 0.6563783034 | F35: 0 | G35: 0.096606267 | H35: 0.6861018544 | I35: 0.667008032 | J35: 0.0003645740546 | L35: 0.4826175038 | M35: 0.02999155615 | N35: 0.06962123389 | O35: 0 | P35: 0 | Q35: 0.08477773815 | R35: 0.01909382242 | U35: 0 | V35: 0
A36: 1026 | B36: 0.2096633519 | C36: 0.02682104941 | D36: 0.2817996506 | E36: 0.6559709338 | F36: 0 | G36: 0.101662933 | H36: 0.7015497277 | I36: 0.6855631229 | J36: 0.000255571533 | L36: 0.4899608008 | M36: 0.03490321432 | N36: 0.0714838449 | O36: 0 | P36: 0 | Q36: 0.08921526295 | R36: 0.0159866048 | U36: 0 | V36: 0
A37: 1027 | B37: 0.2125281794 | C37: 0.0281869983 | D37: 0.2918754384 | E37: 0.6468123295 | F37: 0 | G37: 0.104769729 | H37: 0.7025136896 | I37: 0.6993177908 | J37: 1.021376934e-05 | L37: 0.4966555959 | M37: 0.03668077367 | N37: 0.07403976025 | O37: 0 | P37: 0 | Q37: 0.091941661 | R37: 0.003195898831 | U37: 0 | V37: 0
A38: 1028 | B38: 0.2151771313 | C38: 0.02172686529 | D38: 0.2907038224 | E38: 0.6435823531 | F38: 0 | G38: 0.106215523 | H38: 0.7050764477 | I38: 0.6980728672 | J38: 4.905013949e-05 | L38: 0.5028459127 | M38: 0.02827396587 | N38: 0.07374255754 | O38: 0 | P38: 0 | Q38: 0.09321043112 | R38: 0.007003580476 | U38: 0 | V38: 0
A39: 1029 | B39: 0.2167233815 | C39: 0.02417460863 | D39: 0.3028581352 | E39: 0.6284359514 | F39: 0 | G39: 0.107629303 | H39: 0.7196138357 | I39: 0.7091954752 | J39: 0.0001085422354 | L39: 0.5064593338 | M39: 0.03145930397 | N39: 0.07682573031 | O39: 0 | P39: 0 | Q39: 0.09445110706 | R39: 0.01041836049 | U39: 0 | V39: 0
A40: 1030 | B40: 0.2199817889 | C40: 0.02753784233 | D40: 0.3073369737 | E40: 0.6168728082 | F40: 0 | G40: 0.108995061 | H40: 0.7289629518 | I40: 0.7235214 | J40: 2.961048659e-05 | L40: 0.514073883 | M40: 0.03583600321 | N40: 0.07796187295 | O40: 0 | P40: 0 | Q40: 0.09564964083 | R40: 0.005441551855 | U40: 0 | V40: 0
A41: 1031 | B41: 0.2243154388 | C41: 0.02388434893 | D41: 0.3105261131 | E41: 0.6093513767 | F41: 0 | G41: 0.110360818 | H41: 0.7413387077 | I41: 0.7309017698 | J41: 0.0001089296722 | L41: 0.5242011588 | M41: 0.03108157839 | N41: 0.07877085886 | O41: 0 | P41: 0 | Q41: 0.09684817373 | R41: 0.01043693787 | U41: 0 | V41: 0
A42: 1032 | B42: 0.2228499386 | C42: 0.02573016731 | D42: 0.3251130627 | E42: 0.6042716692 | F42: 0 | G42: 0.111419957 | H42: 0.7497668291 | I42: 0.7345087986 | J42: 0.0002328074964 | L42: 0.5207764417 | M42: 0.03348360948 | N42: 0.08247111627 | O42: 0 | P42: 0 | Q42: 0.09777763112 | R42: 0.01525803056 | U42: 0 | V42: 0
A43: 1033 | B43: 0.2269129982 | C43: 0.03091787166 | D43: 0.3269430422 | E43: 0.5987522266 | F43: 0 | G43: 0.109719528 | H43: 0.7518994881 | I43: 0.7497266651 | J43: 4.721159597e-06 | L43: 0.5302713768 | M43: 0.04023455923 | N43: 0.0829353254 | O43: 0 | P43: 0 | Q43: 0.09628540366 | R43: 0.002172822956 | U43: 0 | V43: 0
A44: 1034 | B44: 0.2299798701 | C44: 0.02765096711 | D44: 0.3286646356 | E44: 0.591477666 | F44: 0 | G44: 0.108019099 | H44: 0.760398061 | I44: 0.7515867613 | J44: 7.763900223e-05 | L44: 0.5374383282 | M44: 0.03598321663 | N44: 0.08337204031 | O44: =$G$2*E44 -> 0 | P44: =$H$2*F44 -> 0 | Q44: 0.0947931762 | R44: 0.00881129969 | U44: 0 | V44: =U44/$U$292 -> 0
A45: 1035 | B45: 0.2328495115 | C45: 0.02549459877 | D45: 0.3382678156 | E45: 0.5856670945 | F45: 0 | G45: 0.10842114 | H45: 0.7643816508 | I45: 0.7582754889 | J45: 3.728521243e-05 | L45: 0.5441443726 | M45: 0.03317705551 | N45: 0.08580806972 | O45: 0 | P45: 0 | Q45: 0.09514599106 | R45: 0.006106161841 | U45: 0 | V45: 0
A46: 1036 | B46: 0.23370359 | C46: 0.02912438991 | D46: 0.3408526471 | E46: 0.5768943298 | F46: 0 | G46: 0.109451192 | H46: 0.7726405916 | I46: 0.7665545826 | J46: 3.7039505e-05 | L46: 0.5461402626 | M46: 0.03790063571 | N46: 0.08646376141 | O46: 0 | P46: 0 | Q46: 0.09604992288 | R46: 0.006086008955 | U46: 0 | V46: 0
A47: 1037 | B47: 0.2378010242 | C47: 0.03008932538 | D47: 0.3505227432 | E47: 0.573425914 | F47: 0 | G47: 0.105547113 | H47: 0.781949602 | I47: 0.7764124962 | J47: 3.065954025e-05 | L47: 0.5557155276 | M47: 0.03915634159 | N47: 0.08891676535 | O47: 0 | P47: 0 | Q47: 0.09262386164 | R47: 0.005537105765 | U47: 0 | V47: 0
A48: 1038 | B48: 0.2403303088 | C48: 0.02828003937 | D48: 0.354875521 | E48: 0.570965567 | F48: 0 | G48: 0.109286848 | H48: 0.7876380532 | I48: 0.7843546778 | J48: 1.07805539e-05 | L48: 0.5616261948 | M48: 0.03680185141 | N48: 0.09002093027 | O48: 0 | P48: 0 | Q48: 0.09590570126 | R48: 0.003283375382 | U48: 0 | V48: 0
A49: 1039 | B49: 0.2389770178 | C49: 0.0323132976 | D49: 0.3563236043 | E49: 0.5635067497 | F49: 0 | G49: 0.109684772 | H49: 0.7892575047 | I49: 0.7871573442 | J49: 4.41067412e-06 | L49: 0.5584636987 | M49: 0.04205047813 | N49: 0.09038826416 | O49: 0 | P49: 0 | Q49: 0.09625490321 | R49: 0.002100160499 | U49: 0 | V49: 0
A50: 1040 | B50: 0.2391105163 | C50: 0.03191776981 | D50: 0.3585723423 | E50: 0.5565343515 | F50: 0 | G50: 0.109349129 | H50: 0.7938966297 | I50: 0.7872304896 | J50: 4.443742382e-05 | L50: 0.5587756704 | M50: 0.04153576333 | N50: 0.09095869935 | O50: 0 | P50: 0 | Q50: 0.09596035654 | R50: 0.006666140099 | U50: 0 | V50: 0
A51: 1041 | B51: 0.2433933161 | C51: 0.02765486654 | D51: 0.3636717192 | E51: 0.5486125766 | F51: 0 | G51: 0.109828535 | H51: 0.7991641388 | I51: 0.7934057233 | J51: 3.315934983e-05 | L51: 0.568784115 | M51: 0.0359882911 | N51: 0.09225225337 | O51: 0 | P51: 0 | Q51: 0.09638106378 | R51: 0.005758415566 | U51: 0 | V51: 0
A52: 1042 | B52: 0.2432461898 | C52: 0.03126761419 | D52: 0.3705093325 | E52: 0.5458041726 | F52: 0 | G52: 0.110511703 | H52: 0.7997296442 | I52: 0.800097317 | J52: 1.351832516e-07 | L52: 0.5684402965 | M52: 0.040689692 | N52: 0.09398674412 | O52: 0 | P52: 0 | Q52: 0.09698058428 | R52: -0.0003676727506 | U52: 0 | V52: 0
A53: 1043 | B53: 0.2457218445 | C53: 0.03451270012 | D53: 0.3652839635 | E53: 0.541961644 | F53: 0 | G53: 0.111199463 | H53: 0.8059820148 | I53: 0.809383642 | J53: 1.157106723e-05 | L53: 0.5742256364 | M53: 0.04491264121 | N53: 0.09266122983 | O53: 0 | P53: 0 | Q53: 0.09758413454 | R53: -0.003401627145 | U53: 0 | V53: 0
A54: 1044 | B54: 0.2434855243 | C54: 0.03262160869 | D54: 0.3615226332 | E54: 0.5435598035 | F54: 0 | G54: 0.111888517 | H54: 0.80321739 | I54: 0.8013472075 | J54: 3.497582527e-06 | L54: 0.5689995957 | M54: 0.04245169465 | N54: 0.0917070968 | O54: 0 | P54: 0 | Q54: 0.09818882036 | R54: 0.001870182485 | U54: 0 | V54: 0
A55: 1045 | B55: 0.2461098647 | C55: 0.03305202481 | D55: 0.3724851794 | E55: 0.5360913792 | F55: 0 | G55: 0.112185371 | H55: 0.802888895 | I55: 0.8110814918 | J55: 6.711864175e-05 | L55: 0.5751323982 | M55: 0.04301181092 | N55: 0.0944879553 | O55: 0 | P55: 0 | Q55: 0.09844932738 | R55: -0.008192596765 | U55: 0 | V55: 0
A56: 1046 | B56: 0.2453631139 | C56: 0.03621115804 | D56: 0.3757211532 | E56: 0.5406167727 | F56: 0 | G56: 0.112365074 | H56: 0.8021220997 | I56: 0.8144260772 | J56: 0.0001513878639 | L56: 0.5733873214 | M56: 0.04712290674 | N56: 0.09530882164 | O56: 0 | P56: 0 | Q56: 0.09860702743 | R56: -0.01230397756 | U56: 0 | V56: 0
A57: 1047 | B57: 0.2438972746 | C57: 0.03059111264 | D57: 0.3739000454 | E57: 0.5275669268 | F57: 0 | G57: 0.112165693 | H57: 0.7988887893 | I57: 0.8030500696 | J57: 1.731625325e-05 | L57: 0.5699618121 | M57: 0.03980933574 | N57: 0.09484686298 | O57: 0 | P57: 0 | Q57: 0.09843205876 | R57: -0.004161280242 | U57: 0 | V57: 0
A58: 1048 | B58: 0.2459695184 | C58: 0.03217319075 | D58: 0.3730604652 | E58: 0.5303442044 | F58: 0 | G58: 0.11183995 | H58: 0.7981857916 | I58: 0.8094526632 | J58: 0.0001269423962 | L58: 0.5748044239 | M58: 0.04186815195 | N58: 0.09463388748 | O58: 0 | P58: 0 | Q58: 0.09814619993 | R58: -0.01126687162 | U58: 0 | V58: 0
A59: 1049 | B59: 0.2482344502 | C59: 0.03731468851 | D59: 0.3714733917 | E59: 0.5235299677 | F59: 0 | G59: 0.113741431 | H59: 0.7993917572 | I59: 0.8227024569 | J59: 0.0005433887176 | L59: 0.5800973269 | M59: 0.04855897137 | N59: 0.0942312961 | O59: 0 | P59: 0 | Q59: 0.09981486246 | R59: -0.02331069964 | U59: 0 | V59: 0
A60: 1050 | B60: 0.2475978068 | C60: 0.03524837057 | D60: 0.3730361196 | E60: 0.5228462661 | F60: 0 | G60: 0.116466678 | H60: 0.8016365324 | I60: 0.8213136959 | J60: 0.0003871907665 | L60: 0.5786095595 | M60: 0.04586999613 | N60: 0.09462771175 | O60: =$G$2*E60 -> 0 | P60: =$H$2*F60 -> 0 | Q60: 0.1022064286 | R60: -0.01967716358 | U60: 0 | V60: =U60/$U$292 -> 0
A61: 1051 | B61: 0.247415899 | C61: 0.03503790048 | D61: 0.3703435897 | E61: 0.5251553721 | F61: 0 | G61: 0.117028886 | H61: 0.7948742907 | I61: 0.8204250639 | J61: 0.0006528420128 | L61: 0.5781844604 | M61: 0.04559610369 | N61: 0.0939447003 | O61: 0 | P61: 0 | Q61: 0.1026997995 | R61: -0.02555077323 | U61: 0 | V61: 0
A62: 1052 | B62: 0.2465886694 | C62: 0.03749901093 | D62: 0.3636810035 | E62: 0.5232546625 | F62: 0 | G62: 0.116707599 | H62: 0.7946937575 | I62: 0.8197226099 | J62: 0.000626443452 | L62: 0.5762513134 | M62: 0.0487988369 | N62: 0.09225460852 | O62: 0 | P62: 0 | Q62: 0.1024178511 | R62: -0.02502885239 | U62: 0 | V62: 0
A63: 1053 | B63: 0.2479311123 | C63: 0.03555984581 | D63: 0.3655582301 | E63: 0.5178793554 | F63: 0 | G63: 0.115840938 | H63: 0.7930487567 | I63: 0.8200518964 | J63: 0.0007291695555 | L63: 0.5793884588 | M63: 0.04627533027 | N63: 0.09273080276 | O63: 0 | P63: 0 | Q63: 0.1016573046 | R63: -0.02700313973 | U63: 0 | V63: 0
A64: 1054 | B64: 0.2463641831 | C64: 0.03382220357 | D64: 0.3613733959 | E64: 0.5152118814 | F64: 0 | G64: 0.114729254 | H64: 0.7885275839 | I64: 0.8120917614 | J64: 0.0005552704624 | L64: 0.5757267129 | M64: 0.04401407276 | N64: 0.09166923991 | O64: 0 | P64: 0 | Q64: 0.1006817358 | R64: -0.02356417752 | U64: 0 | V64: 0
A65: 1055 | B65: 0.2464397124 | C65: 0.04060219726 | D65: 0.3537928971 | E65: 0.5129725447 | F65: 0 | G65: 0.11361757 | H65: 0.7887012346 | I65: 0.8181928131 | J65: 0.0008697532052 | L65: 0.575903217 | M65: 0.05283712696 | N65: 0.08974630213 | O65: 0 | P65: 0 | Q65: 0.09970616708 | R65: -0.02949157855 | U65: 0 | V65: 0
A66: 1056 | B66: 0.2468130879 | C66: 0.03949745235 | D66: 0.3441665406 | E66: 0.5082728388 | F66: 0 | G66: 0.115719741 | H66: 0.7857651185 | I66: 0.8170305779 | J66: 0.0009775289467 | L66: 0.5767757554 | M66: 0.05139948193 | N66: 0.08730439357 | O66: 0 | P66: 0 | Q66: 0.101550947 | R66: -0.03126545932 | U66: 0 | V66: 0
A67: 1057 | B67: 0.2481792609 | C67: 0.03715923178 | D67: 0.331269755 | E67: 0.5028678035 | F67: 0 | G67: 0.118413211 | H67: 0.782431667 | I67: 0.8162725306 | J67: 0.001145204047 | L67: 0.5799683554 | M67: 0.04835666983 | N67: 0.08403287845 | O67: 0 | P67: 0 | Q67: 0.1039146269 | R67: -0.03384086356 | U67: 0 | V67: 0
A68: 1058 | B68: 0.2445450373 | C68: 0.04091629966 | D68: 0.3088090588 | E68: 0.4974493889 | F68: 0 | G68: 0.119452026 | H68: 0.7750584581 | I68: 0.8078829881 | J68: 0.001077449769 | L68: 0.571475564 | M68: 0.05324587992 | N68: 0.07833529535 | O68: 0 | P68: 0 | Q68: 0.1048262488 | R68: -0.03282452999 | U68: 0 | V68: 0
A69: 1059 | B69: 0.2440528082 | C69: 0.0415505271 | D69: 0.2866578408 | E69: 0.5003965777 | F69: 0 | G69: 0.120148032 | H69: 0.7718672292 | I69: 0.8025497534 | J69: 0.0009414172873 | L69: 0.5703252773 | M69: 0.05407122333 | N69: 0.0727162173 | O69: 0 | P69: 0 | Q69: 0.1054370354 | R69: -0.03068252414 | U69: 0 | V69: 0
A70: 1060 | B70: 0.2414729447 | C70: 0.0390712909 | D70: 0.2677058718 | E70: 0.5028809387 | F70: 0 | G70: 0.120651206 | H70: 0.7709870239 | I70: 0.7889286052 | J70: 0.000321900339 | L70: 0.5642964126 | M70: 0.05084490243 | N70: 0.06790868966 | O70: 0 | P70: 0 | Q70: 0.1058786005 | R70: -0.01794158128 | U70: 0 | V70: 0
A71: 1061 | B71: 0.2409087118 | C71: 0.04344277513 | D71: 0.2573989381 | E71: 0.5167949979 | F71: 0 | G71: 0.121301656 | H71: 0.7704695764 | I71: 0.7912550847 | J71: 0.0004320373528 | L71: 0.5629778609 | M71: 0.05653367503 | N71: 0.06529413976 | O71: 0 | P71: 0 | Q71: 0.106449409 | R71: -0.02078550824 | U71: 0 | V71: 0
A72: 1062 | B72: 0.2402103703 | C72: 0.04657862744 | D72: 0.2490979739 | E72: 0.5277071599 | F72: 0 | G72: 0.123032119 | H72: 0.762363497 | I72: 0.7931168213 | J72: 0.0009457669571 | L72: 0.5613459115 | M72: 0.06061447454 | N72: 0.0631884422 | O72: 0 | P72: 0 | Q72: 0.1079679931 | R72: -0.03075332433 | U72: 0 | V72: 0
A73: 1063 | B73: 0.2403718703 | C73: 0.04338922406 | D73: 0.2354657304 | E73: 0.5351449488 | F73: 0 | G73: 0.125070139 | H73: 0.7619963195 | I73: 0.7876741475 | J73: 0.0006593508514 | L73: 0.5617233196 | M73: 0.05646398706 | N73: 0.05973036416 | O73: 0 | P73: 0 | Q73: 0.1097564767 | R73: -0.02567782801 | U73: 0 | V73: 0
A74: 1064 | B74: 0.2380594106 | C74: 0.04443910432 | D74: 0.2269798358 | E74: 0.5444355301 | F74: 0 | G74: 0.127304792 | H74: 0.7622598954 | I74: 0.7834448565 | J74: 0.0004488025785 | L74: 0.5563193489 | M74: 0.0578302347 | N74: 0.05757775547 | O74: 0 | P74: 0 | Q74: 0.1117175175 | R74: -0.02118496114 | U74: 0 | V74: 0
A75: 1065 | B75: 0.2405257766 | C75: 0.04827743235 | D75: 0.2178931406 | E75: 0.5536017511 | F75: 0 | G75: 0.128042248 | H75: 0.7657821331 | I75: 0.792545595 | J75: 0.0007162828966 | L75: =$D$2*B75 -> 0.5620829822 | M75: =$E$2*C75 -> 0.06282519161 | N75: =$F$2*D75 -> 0.05527274229 | O75: 0 | P75: 0 | Q75: =$I$2*G75 -> 0.1123646789 | R75: =H75-I75 -> -0.02676346197 | U75: 0 | V75: 0
A76: 1066 | B76: 0.2412096089 | C76: 0.04678655299 | D76: 0.216227047 | E76: 0.5611584336 | F76: 0 | G76: 0.127739277 | H76: 0.7702977914 | I76: =($D$2*B76)+($E$2*C76)+($F$2*D76)+($G$2*E76)+($H$2*F76)+($I$2*G76) -> 0.7915149906 | J76: =(H76-I76)^2 -> 0.0004501695408 | L76: 0.5636810251 | M76: 0.06088505567 | N76: 0.05485010595 | O76: =$G$2*E76 -> 0 | P76: =$H$2*F76 -> 0 | Q76: 0.1120988039 | R76: -0.02121719918 | U76: 0 | V76: =U76/$U$292 -> 0
A77: 1067 | B77: 0.2459101933 | C77: 0.04771465867 | D77: 0.2075283001 | E77: 0.5742286945 | F77: 0 | G77: 0.12801703 | H77: 0.7734119214 | I77: 0.8017446728 | J77: 0.0008027448055 | L77: 0.5746657874 | M77: 0.06209283359 | N77: 0.05264350322 | O77: 0 | P77: 0 | Q77: 0.1123425486 | R77: -0.02833275146 | U77: 0 | V77: 0
A78: 1068 | B78: 0.2458099169 | C78: 0.05431845098 | D78: 0.2002248876 | E78: 0.5874850415 | F78: 0 | G78: 0.128732871 | H78: 0.7787666125 | I78: 0.8088796379 | J78: 0.000906794295 | L78: 0.5744314521 | M78: 0.0706865905 | N78: 0.05079085363 | O78: 0 | P78: 0 | Q78: 0.1129707416 | R78: -0.03011302534 | U78: 0 | V78: 0
A79: 1069 | B79: 0.2480008787 | C79: 0.05144025021 | D79: 0.1946154904 | E79: 0.5952560455 | F79: 0 | G79: 0.129452313 | H79: 0.786626483 | I79: 0.8094625957 | J79: 0.0005214880416 | L79: 0.5795514953 | M79: 0.06694108238 | N79: 0.04936792328 | O79: 0 | P79: 0 | Q79: 0.1136020947 | R79: -0.02283611266 | U79: 0 | V79: 0
A80: 1070 | B80: 0.2493936972 | C80: 0.05007875427 | D80: 0.1969530831 | E80: 0.6056679132 | F80: 0 | G80: 0.130174701 | H80: 0.7900421085 | I80: 0.812172612 | J80: 0.0004897591849 | L80: 0.5828063629 | M80: 0.06516931783 | N80: 0.04996089815 | O80: 0 | P80: 0 | Q80: 0.1142360331 | R80: -0.02213050349 | U80: 0 | V80: 0
A81: 1071 | B81: 0.2537959609 | C81: 0.05389738688 | D81: 0.1888343672 | E81: 0.6175719195 | F81: 0 | G81: 0.130896495 | H81: 0.8057078431 | I81: 0.8260035077 | J81: 0.0004119140022 | L81: 0.5930939818 | M81: 0.07013864436 | N81: 0.04790143135 | O81: 0 | P81: 0 | Q81: 0.1148694502 | R81: -0.02029566462 | U81: 0 | V81: 0
A82: 1072 | B82: 0.258208259 | C82: 0.05486667616 | D82: 0.1878698953 | E82: 0.627496284 | F82: 0 | G82: 0.131617782 | H82: 0.8155548642 | I82: 0.8379642631 | J82: 0.0005021811597 | L82: 0.60340505 | M82: 0.07140001601 | N82: 0.04765677469 | O82: 0 | P82: 0 | Q82: 0.1155024224 | R82: -0.02240939891 | U82: 0 | V82: 0
A83: 1073 | B83: 0.2609795223 | C83: 0.05367566463 | D83: 0.1813704386 | E83: 0.6432315921 | F83: 0 | G83: 0.132868851 | H83: 0.8258489387 | I83: 0.8423396782 | J83: 0.0002719444886 | L83: 0.6098811956 | M83: 0.06985010906 | N83: 0.0460080638 | O83: 0 | P83: 0 | Q83: 0.1166003098 | R83: -0.01649073948 | U83: 0 | V83: 0
A84: 1074 | B84: 0.2638004153 | C84: 0.06004118689 | D84: 0.1813163831 | E84: 0.6567989006 | F84: 0 | G84: 0.13460895 | H84: 0.8408489215 | I84: 0.8587288185 | J84: 0.0003196907174 | L84: 0.6164733205 | M84: 0.07813379642 | N84: 0.04599435158 | O84: 0 | P84: 0 | Q84: 0.11812735 | R84: -0.01787989702 | U84: 0 | V84: 0
A85: 1075 | B85: 0.2709978758 | C85: 0.05923450055 | D85: 0.1723126281 | E85: 0.6775447942 | F85: 0 | G85: 0.136350535 | H85: 0.8537450359 | I85: 0.8737431129 | J85: 0.0003999230839 | L85: 0.6332930149 | M85: 0.07708402592 | N85: 0.04371037776 | O85: 0 | P85: 0 | Q85: 0.1196556943 | R85: -0.019998077 | U85: 0 | V85: 0
A86: 1076 | B86: 0.2780017669 | C86: 0.05591946446 | D86: 0.1760390218 | E86: 0.6822201631 | F86: 0 | G86: 0.138093604 | H86: 0.8691081085 | I86: 0.8882713956 | J86: 0.0003672315699 | L86: 0.6496603582 | M86: 0.072770048 | N86: 0.04465564844 | O86: 0 | P86: 0 | Q86: 0.1211853409 | R86: -0.01916328703 | U86: 0 | V86: 0
A87: 1077 | B87: 0.2827504893 | C87: 0.06140106358 | D87: 0.1730987717 | E87: 0.6942099709 | F87: 0 | G87: 0.141471523 | H87: 0.8896959079 | I87: 0.9087205314 | J87: 0.0003619363008 | L87: 0.6607576141 | M87: 0.07990345378 | N87: 0.04390979805 | O87: 0 | P87: 0 | Q87: 0.1241496655 | R87: -0.01902462354 | U87: 0 | V87: 0
A88: 1078 | B88: 0.2941811878 | C88: 0.06372510741 | D88: 0.173922878 | E88: 0.7028281354 | F88: 0 | G88: 0.14662053 | H88: 0.9146892227 | I88: 0.9431848227 | J88: 0.0008119992163 | L88: 0.6874699322 | M88: 0.08292781717 | N88: 0.0441188483 | O88: 0 | P88: 0 | Q88: 0.128668225 | R88: -0.02849559995 | U88: 0 | V88: 0
A89: 1079 | B89: 0.3023245959 | C89: 0.06394916767 | D89: 0.1686226153 | E89: 0.7260195107 | F89: 0 | G89: 0.149794205 | H89: 0.9377317097 | I89: 0.9639472491 | J89: 0.000687254509 | L89: 0.706500205 | M89: 0.083219395 | N89: 0.04277433578 | O89: 0 | P89: 0 | Q89: 0.1314533133 | R89: -0.02621553946 | U89: 0 | V89: 0
A90: 1080 | B90: 0.3096567075 | C90: 0.06631023131 | D90: 0.1685769501 | E90: 0.7345812801 | F90: 0 | G90: 0.151812485 | H90: 0.9617779418 | I90: 0.9859137241 | J90: 0.000582535983 | L90: 0.7236345646 | M90: 0.08629193361 | N90: 0.04276275192 | O90: 0 | P90: 0 | Q90: 0.1332244739 | R90: -0.02413578221 | U90: 0 | V90: 0
A91: 1081 | B91: 0.3196402117 | C91: 0.07022287984 | D91: 0.1651874751 | E91: 0.7506656841 | F91: 0 | G91: 0.152546149 | H91: 0.9919601294 | I91: 1.014119806 | J91: 0.0004910512705 | L91: 0.7469649448 | M91: 0.09138360651 | N91: 0.04190294708 | O91: 0 | P91: 0 | Q91: 0.1338683077 | R91: -0.02215967668 | U91: 0 | V91: 0
A92: 1082 | B92: 0.3324006745 | C92: 0.06807146014 | D92: 0.1631139018 | E92: 0.7707748802 | F92: 0 | G92: 0.154556273 | H92: 1.025608015 | I92: 1.042377922 | J92: 0.0002812297774 | L92: 0.7767847798 | M92: 0.08858388523 | N92: 0.04137694574 | O92: =$G$2*E92 -> 0 | P92: =$H$2*F92 -> 0 | Q92: 0.1356323109 | R92: -0.0167699069 | U92: 0 | V92: =U92/$U$292 -> 0
A93: 1083 | B93: 0.3469522816 | C93: 0.07136602422 | D93: 0.1656135923 | E93: 0.7899293911 | F93: 0 | G93: 0.158190983 | H93: 1.06137801 | I93: 1.084494574 | J93: 0.000534375514 | L93: 0.8107903272 | M93: 0.09287122217 | N93: 0.04201103982 | O93: 0 | P93: 0 | Q93: 0.1388219849 | R93: -0.02311656363 | U93: 0 | V93: 0
A94: 1084 | B94: 0.360673608 | C94: 0.07583556425 | D94: 0.1681445745 | E94: 0.8143428805 | F94: 0 | G94: 0.161774622 | H94: 1.106325035 | I94: 1.126163109 | J94: 0.0003935491722 | L94: 0.8428555978 | M94: 0.09868759838 | N94: 0.04265307163 | O94: 0 | P94: 0 | Q94: 0.141966841 | R94: -0.0198380738 | U94: 0 | V94: 0
A95: 1085 | B95: 0.3777410753 | C95: 0.07663205589 | D95: 0.1652261255 | E95: 0.8501964884 | F95: 0 | G95: 0.162855738 | H95: 1.159154976 | I95: 1.167292879 | J95: 6.62254672e-05 | L95: 0.882740441 | M95: 0.09972410214 | N95: 0.04191275149 | O95: 0 | P95: 0 | Q95: 0.1429155845 | R95: -0.008137903121 | U95: 0 | V95: 0
A96: 1086 | B96: 0.4014212945 | C96: 0.0797464696 | D96: 0.1667721415 | E96: 0.8885033112 | F96: 0 | G96: 0.163936854 | H96: 1.226443498 | I96: 1.228024836 | J96: 2.500631314e-06 | L96: 0.9380785775 | M96: 0.1037770028 | N96: 0.04230492787 | O96: 0 | P96: 0 | Q96: 0.143864328 | R96: -0.001581338457 | U96: 0 | V96: 0
A97: 1087 | B97: 0.4305238307 | C97: 0.08798302436 | D97: 0.1724994842 | E97: 0.9504014229 | F97: 0 | G97: 0.16552087 | H97: 1.309596459 | I97: 1.309595795 | J97: 4.414180422e-13 | L97: 1.006088088 | M97: 0.1144955333 | N97: 0.04375777737 | O97: 0 | P97: 0 | Q97: 0.1452543961 | R97: 6.643929877e-07 | U97: 0 | V97: 0
A98: 1088 | B98: 0.4573019744 | C98: 0.0940367244 | D98: 0.1740162029 | E98: 1.015501619 | F98: 0 | G98: 0.167330827 | H98: 1.378231783 | I98: 1.38202444 | J98: 1.438424682e-05 | L98: 1.068665742 | M98: 0.122373435 | N98: 0.04414252193 | O98: 0 | P98: 0 | Q98: 0.1468427409 | R98: -0.003792656961 | U98: 0 | V98: 0
A99: 1089 | B99: 0.4649706459 | C99: 0.09960836565 | D99: 0.1825635806 | E99: 1.066101302 | F99: 0 | G99: 0.167964644 | H99: 1.408347007 | I99: 1.409920302 | J99: 2.475258207e-06 | L99: 1.086586606 | M99: 0.1296240159 | N99: 0.04631072697 | O99: 0 | P99: 0 | Q99: 0.147398953 | R99: -0.001573295334 | U99: 0 | V99: 0
A100: 1090 | B100: 0.4702332257 | C100: 0.1068974911 | D100: 0.1930687867 | E100: 1.104029977 | F100: 0 | G100: 0.166679495 | H100: 1.424272077 | I100: 1.433241044 | J100: 8.044238263e-05 | L100: 1.098884692 | M100: 0.1391096219 | N100: 0.04897557244 | O100: 0 | P100: 0 | Q100: 0.1462711584 | R100: -0.008968967757 | U100: 0 | V100: 0
A101: 1091 | B101: 0.4717006922 | C101: 0.1081326686 | D101: 0.1966867254 | E101: 1.131573367 | F101: 0 | G101: 0.165761119 | H101: 1.442025344 | I101: 1.438389568 | J101: 1.32188726e-05 | L101: 1.102314004 | M101: 0.1407170037 | N101: 0.04989333146 | O101: 0 | P101: 0 | Q101: 0.1454652289 | R101: 0.003635776754 | U101: 0 | V101: 0
A102: 1092 | B102: 0.4778860998 | C102: 0.1099051744 | D102: 0.1975600732 | E102: 1.156345905 | F102: 0 | G102: 0.165494782 | H102: 1.449556193 | I102: 1.455138644 | J102: 3.116376458e-05 | L102: 1.116768639 | M102: 0.1430236304 | N102: 0.05011487274 | O102: 0 | P102: 0 | Q102: 0.1452315024 | R102: -0.005582451484 | U102: 0 | V102: 0
A103: 1093 | B103: 0.4786972608 | C103: 0.1125585218 | D103: 0.2031851505 | E103: 1.165943571 | F103: 0 | G103: 0.166020575 | H103: 1.455138276 | I103: 1.462375461 | J103: 5.237685812e-05 | L103: 1.118664235 | M103: 0.1464765286 | N103: 0.05154178068 | O103: 0 | P103: 0 | Q103: 0.1456929169 | R103: -0.007237185787 | U103: 0 | V103: 0
A104: 1094 | B104: 0.483751423 | C104: 0.1123743729 | D104: 0.212242686 | E104: 1.173812237 | F104: 0 | G104: 0.168084031 | H104: 1.46969927 | I104: 1.478055279 | J104: 6.982288905e-05 | L104: 1.130475271 | M104: 0.1462368888 | N104: 0.05383939694 | O104: 0 | P104: 0 | Q104: 0.1475037222 | R104: -0.008356009158 | U104: 0 | V104: 0
A105: 1095 | B105: 0.4843477253 | C105: 0.1116220803 | D105: 0.211884654 | E105: 1.18195981 | F105: 0 | G105: 0.170147487 | H105: 1.473157622 | I105: 1.480189771 | J105: 4.94511212e-05 | L105: 1.131868766 | M105: 0.1452579029 | N105: 0.05374857531 | O105: 0 | P105: 0 | Q105: 0.1493145274 | R105: -0.007032149116 | U105: 0 | V105: 0
A106: 1096 | B106: 0.4877841081 | C106: 0.1151873325 | D106: 0.2153568629 | E106: 1.1873092 | F106: 0 | G106: 0.172210943 | H106: 1.481646083 | I106: 1.49555142 | J106: 0.0001933583918 | L106: 1.139899224 | M106: 0.1498974963 | N106: 0.05462936717 | O106: 0 | P106: 0 | Q106: 0.1511253326 | R106: -0.01390533681 | U106: 0 | V106: 0
A107: 1097 | B107: 0.4903375295 | C107: 0.1200143644 | D107: 0.2136956522 | E107: 1.185850775 | F107: 0 | G107: 0.173494 | H107: 1.49089508 | I107: 1.508504647 | J107: 0.000310096854 | L107: 1.145866297 | M107: 0.1561790897 | N107: 0.05420796946 | O107: 0 | P107: 0 | Q107: 0.1522512913 | R107: -0.01760956711 | U107: 0 | V107: 0
A108: 1098 | B108: 0.4876925778 | C108: 0.1160263709 | D108: 0.2157344951 | E108: 1.190678462 | F108: 0 | G108: 0.175406525 | H108: 1.490509405 | I108: 1.499329502 | J108: 7.77941154e-05 | L108: 1.139685328 | M108: 0.1509893677 | N108: 0.05472516078 | O108: =$G$2*E108 -> 0 | P108: =$H$2*F108 -> 0 | Q108: 0.1539296456 | R108: -0.008820097244 | U108: 0 | V108: =U108/$U$292 -> 0
A109: 1099 | B109: 0.4903093246 | C109: 0.1161278222 | D109: 0.2237174532 | E109: 1.17924312 | F109: 0 | G109: 0.179214941 | H109: 1.493768444 | I109: 1.510943722 | J109: 0.000294990182 | L109: 1.145800385 | M109: 0.15112139 | N109: 0.05675019004 | O109: 0 | P109: 0 | Q109: 0.1572717569 | R109: -0.01717527822 | U109: 0 | V109: 0
A110: 1100 | B110: 0.4940802333 | C110: 0.1179227993 | D110: 0.2203807271 | E110: 1.178178615 | F110: 0 | G110: 0.183024512 | H110: 1.501573887 | I110: 1.524588502 | J110: 0.0005296724936 | L110: 1.154612595 | M110: 0.1534572594 | N110: 0.05590376595 | O110: 0 | P110: 0 | Q110: 0.1606148818 | R110: -0.02301461478 | U110: 0 | V110: 0
A111: 1101 | B111: 0.4955266139 | C111: 0.1162930523 | D111: 0.2240514147 | E111: 1.16754821 | F111: 0 | G111: 0.186837053 | H111: 1.506815269 | I111: 1.53012456 | J111: 0.0005433230417 | L111: 1.157992631 | M111: 0.1513364099 | N111: 0.05683490572 | O111: 0 | P111: 0 | Q111: 0.163960613 | R111: -0.02330929089 | U111: 0 | V111: 0
A112: 1102 | B112: 0.4975526858 | C112: 0.1165543637 | D112: 0.2158199111 | E112: 1.156132405 | F112: 0 | G112: 0.190649594 | H112: 1.517071324 | I112: 1.536456981 | J112: 0.0003758036668 | L112: 1.162727344 | M112: 0.151676464 | N112: 0.05474682818 | O112: 0 | P112: 0 | Q112: 0.1673063442 | R112: -0.01938565621 | U112: 0 | V112: 0
A113: 1103 | B113: 0.5025985085 | C113: 0.1197826292 | D113: 0.2160007152 | E113: 1.151974951 | F113: 0 | G113: 0.194340219 | H113: 1.535022518 | I113: 1.555734195 | J113: 0.0004289735603 | L113: 1.174518892 | M113: 0.1558775242 | N113: 0.05479269258 | O113: 0 | P113: 0 | Q113: 0.1705450869 | R113: -0.02071167691 | U113: 0 | V113: 0
A114: 1104 | B114: 0.5134920264 | C114: 0.1160428939 | D114: 0.2150896112 | E114: 1.145980978 | F114: 0 | G114: 0.197665095 | H114: 1.554976516 | I114: 1.579011183 | J114: 0.0005776651801 | L114: 1.199975876 | M114: 0.1510108697 | N114: 0.05456157369 | O114: 0 | P114: 0 | Q114: 0.1734628631 | R114: -0.02403466622 | U114: 0 | V114: 0
A115: 1105 | B115: 0.5230694755 | C115: 0.1149414702 | D115: 0.2148782031 | E115: 1.143464501 | F115: 0 | G115: 0.201591579 | H115: 1.58450703 | I115: 1.603351428 | J115: 0.0003551113102 | L115: 1.222357349 | M115: 0.1495775466 | N115: 0.05450794601 | O115: 0 | P115: 0 | Q115: 0.176908586 | R115: -0.01884439732 | U115: 0 | V115: 0
A116: 1106 | B116: 0.5369925752 | C116: 0.1197716414 | D116: 0.2151109308 | E116: 1.134079559 | F116: 0 | G116: 0.207423158 | H116: 1.622863434 | I116: 1.647350492 | J116: 0.0005996160241 | L116: 1.254894142 | M116: 0.1558632254 | N116: 0.05456698182 | O116: 0 | P116: 0 | Q116: 0.182026143 | R116: -0.0244870583 | U116: 0 | V116: 0
A117: 1107 | B117: 0.5524093122 | C117: 0.1184853251 | D117: 0.2132605257 | E117: 1.134073975 | F117: 0 | G117: 0.214733307 | H117: 1.667195215 | I117: 1.687649525 | J117: 0.0004183788088 | L117: 1.290921406 | M117: 0.1541892949 | N117: 0.05409759135 | O117: 0 | P117: 0 | Q117: 0.188441233 | R117: -0.02045431027 | U117: 0 | V117: 0
A118: 1108 | B118: 0.5703006191 | C118: 0.1188209901 | D118: 0.2077765017 | E118: 1.134102571 | F118: 0 | G118: 0.220708709 | H118: 1.713706375 | I118: 1.733749049 | J118: 0.0004017087973 | L118: 1.332731474 | M118: 0.154626108 | N118: 0.05270646427 | O118: 0 | P118: 0 | Q118: 0.1936850033 | R118: -0.0200426744 | U118: 0 | V118: 0
A119: 1109 | B119: 0.5919530036 | C119: 0.1246241187 | D119: 0.2036781151 | E119: 1.13508419 | F119: 0 | G119: 0.226176258 | H119: 1.765764804 | I119: 1.795658642 | J119: 0.00089364158 | L119: 1.383330778 | M119: 0.1621779319 | N119: 0.05166683051 | O119: 0 | P119: 0 | Q119: 0.1984831023 | R119: -0.0298938385 | U119: 0 | V119: 0
A120: 1110 | B120: 0.60791004 | C120: 0.1269920311 | D120: 0.2096639754 | E120: 1.139747354 | F120: 0 | G120: 0.23273255 | H120: 1.822320542 | I120: 1.843301942 | J120: 0.00044021916 | L120: 1.420620663 | M120: 0.1652593831 | N120: 0.0531852579 | O120: 0 | P120: 0 | Q120: 0.204236638 | R120: -0.02098140033 | U120: 0 | V120: 0
A121: 1111 | B121: 0.6316889085 | C121: 0.1240235899 | D121: 0.221129527 | E121: 1.142259086 | F121: 0 | G121: 0.240210535 | H121: 1.884905591 | I121: 1.904478501 | J121: 0.0003830988228 | L121: 1.476189332 | M121: 0.1613964418 | N121: 0.0560937133 | O121: 0 | P121: 0 | Q121: 0.2107990141 | R121: -0.01957291043 | U121: 0 | V121: 0
A122: 1112 | B122: 0.6518674534 | C122: 0.1286054203 | D122: 0.209888519 | E122: 1.143281272 | F122: 0 | G122: 0.248103287 | H122: 1.946558648 | I122: 1.961670967 | J122: 0.0002283821778 | L122: 1.523344431 | M122: 0.1673589456 | N122: 0.05324221768 | O122: 0 | P122: 0 | Q122: 0.2177253728 | R122: -0.01511231874 | U122: 0 | V122: 0
A123: 1113 | B123: 0.6768008228 | C123: 0.1308445359 | D123: 0.2106941942 | E123: 1.141814877 | F123: 0 | G123: 0.257358911 | H123: 2.022687343 | I123: 2.031178159 | J123: 7.209395077e-05 | L123: 1.581611045 | M123: 0.1702727887 | N123: 0.05344659252 | O123: 0 | P123: 0 | Q123: 0.2258477327 | R123: -0.008490815672 | U123: 0 | V123: 0
A124: 1114 | B124: 0.7015708617 | C124: 0.1310333939 | D124: 0.2134515082 | E124: 1.14756133 | F124: 0 | G124: 0.268628515 | H124: 2.094383029 | I124: 2.099898047 | J124: 3.041542585e-05 | L124: 1.639495973 | M124: 0.1705185565 | N124: 0.05414603769 | O124: =$G$2*E124 -> 0 | P124: =$H$2*F124 -> 0 | Q124: 0.2357374797 | R124: -0.00551501821 | U124: 0 | V124: =U124/$U$292 -> 0
A125: 1115 | B125: 0.7222071932 | C125: 0.1358704221 | D125: 0.2138288654 | E125: 1.151504861 | F125: 0 | G125: 0.279269307 | H125: 2.164853693 | I125: 2.163851197 | J125: 1.004997942e-06 | L125: 1.68772087 | M125: 0.1768131586 | N125: 0.05424176153 | O125: 0 | P125: 0 | Q125: 0.2450754068 | R125: 0.001002495856 | U125: 0 | V125: 0
A126: 1116 | B126: 0.7485773834 | C126: 0.1406535028 | D126: 0.2115500736 | E126: 1.153384378 | F126: 0 | G126: 0.294403287 | H126: 2.240432574 | I126: 2.244402813 | J126: 1.576279688e-05 | L126: 1.74934518 | M126: 0.1830375567 | N126: 0.05366370262 | O126: 0 | P126: 0 | Q126: 0.2583563732 | R126: -0.003970238895 | U126: 0 | V126: 0
A127: 1117 | B127: 0.7764290068 | C127: 0.138399186 | D127: 0.2116494505 | E127: 1.15676057 | F127: 0 | G127: 0.30566185 | H127: 2.319254095 | I127: 2.316460716 | J127: 7.802964059e-06 | L127: 1.814431442 | M127: 0.1801039318 | N127: 0.05368891146 | O127: 0 | P127: 0 | Q127: 0.2682364311 | R127: 0.00279337861 | U127: 0 | V127: 0
A128: 1118 | B128: 0.8020493273 | C128: 0.1416152245 | D128: 0.2135816266 | E128: 1.160985268 | F128: 0 | G128: 0.320954465 | H128: 2.400946587 | I128: 2.394428122 | J128: 4.249039783e-05 | L128: 1.874303387 | M128: 0.1842890805 | N128: 0.05417904471 | O128: 0 | P128: 0 | Q128: 0.2816566092 | R128: 0.006518465911 | U128: 0 | V128: 0
A129: 1119 | B129: 0.8278350802 | C129: 0.1474635436 | D129: 0.2182518603 | E129: 1.160177174 | F129: 0 | G129: 0.33865296 | H129: 2.486563013 | I129: 2.479013471 | J129: 5.699557785e-05 | L129: 1.93456193 | M129: 0.1918997123 | N129: 0.05536373837 | O129: 0 | P129: 0 | Q129: 0.2971880899 | R129: 0.007549541566 | U129: 0 | V129: 0
A130: 1120 | B130: 0.8530248698 | C130: 0.1491933374 | D130: 0.2178897019 | E130: 1.165098176 | F130: 0 | G130: 0.353752842 | H130: 2.572120414 | I130: 2.553289531 | J130: 0.0003546021808 | L130: 1.993427771 | M130: 0.1941507564 | N130: 0.05527187001 | O130: 0 | P130: 0 | Q130: 0.3104391334 | R130: 0.0188308837 | U130: 0 | V130: 0
A131: 1121 | B131: 0.8750673764 | C131: 0.1513675175 | D131: 0.2204741207 | E131: 1.172253752 | F131: 0 | G131: 0.379608196 | H131: 2.653104063 | I131: 2.630975045 | J131: 0.0004896934766 | L131: 2.044938748 | M131: 0.1969800967 | N131: 0.05592745703 | O131: 0 | P131: 0 | Q131: 0.3331287425 | R131: 0.02212901888 | U131: 0 | V131: 0
A132: 1122 | B132: 0.9003181861 | C132: 0.1576938472 | D132: 0.2106618709 | E132: 1.18021283 | F132: 0 | G132: 0.400417139 | H132: 2.721493241 | I132: 2.713988187 | J132: 5.632584066e-05 | L132: 2.103947187 | M132: 0.2052127813 | N132: 0.0534383931 | O132: 0 | P132: 0 | Q132: 0.3513898261 | R132: 0.007505054341 | U132: 0 | V132: 0
A133: 1123 | B133: 0.9209477376 | C133: 0.1589036619 | D133: 0.2144563498 | E133: 1.190347955 | F133: 0 | G133: 0.421089277 | H133: 2.798687618 | I133: 2.782875187 | J133: 0.0002500329834 | L133: 2.152156239 | M133: 0.2067871575 | N133: 0.05440093489 | O133: 0 | P133: 0 | Q133: 0.3695308552 | R133: 0.01581243129 | U133: 0 | V133: 0
A134: 1124 | B134: 0.9433760271 | C134: 0.1584424221 | D134: 0.2204916578 | E134: 1.198535713 | F134: 0 | G134: 0.440178495 | H134: 2.872517936 | I134: 2.852970363 | J134: 0.0003821076123 | L134: 2.20456875 | M134: 0.2061869293 | N134: 0.05593190565 | O134: 0 | P134: 0 | Q134: 0.386282778 | R134: 0.01954757305 | U134: 0 | V134: 0
A135: 1125 | B135: 0.956009229 | C135: 0.1672227491 | D135: 0.2193203857 | E135: 1.212194795 | F135: 0 | G135: 0.45343916 | H135: 2.941266028 | I135: 2.90525887 | J135: 0.001296515456 | L135: 2.23409119 | M135: 0.2176130905 | N135: 0.05563479017 | O135: 0 | P135: 0 | Q135: 0.3979197993 | R135: 0.0360071584 | U135: 0 | V135: 0
A136: 1126 | B136: 0.9711679864 | C136: 0.1696132981 | D136: 0.2138903484 | E136: 1.214190825 | F136: 0 | G136: 0.487301069 | H136: 2.993212639 | I136: 2.972132576 | J136: 0.0004443690437 | L136: 2.269515583 | M136: 0.2207239994 | N136: 0.05425735787 | O136: 0 | P136: 0 | Q136: 0.427635636 | R136: 0.02108006271 | U136: 0 | V136: 0
A137: 1127 | B137: 0.9825251895 | C137: 0.1723860242 | D137: 0.2240551972 | E137: 1.227235203 | F137: 0 | G137: 0.503591574 | H137: 3.051034055 | I137: 3.019155787 | J137: 0.001016223975 | L137: 2.29605615 | M137: 0.2243322495 | N137: 0.05683586522 | O137: 0 | P137: 0 | Q137: 0.4419315218 | R137: 0.03187826807 | U137: 0 | V137: 0
A138: 1128 | B138: 0.9916775316 | C138: 0.1769880127 | D138: 0.2184310826 | E138: 1.239188442 | F138: 0 | G138: 0.526134735 | H138: 3.094495972 | I138: 3.064888866 | J138: 0.0008765807309 | L138: 2.317444194 | M138: 0.2303209857 | N138: 0.05540920153 | O138: 0 | P138: 0 | Q138: 0.4617144848 | R138: 0.02960710609 | U138: 0 | V138: 0
A139: 1129 | B139: 0.9975158025 | C139: 0.1795126458 | D139: 0.2223008679 | E139: 1.248477636 | F139: 0 | G139: 0.560636051 | H139: 3.133466954 | I139: 3.113076276 | J139: 0.000415779729 | L139: =$D$2*B139 -> 2.331087607 | M139: =$E$2*C139 -> 0.2336063834 | N139: =$F$2*D139 -> 0.05639084622 | O139: 0 | P139: 0 | Q139: =$I$2*G139 -> 0.4919914391 | R139: =H139-I139 -> 0.0203906775 | U139: 0 | V139: 0
A140: 1130 | B140: 1 | C140: 0.1803212819 | D140: 0.2203067961 | E140: 1.257426047 | F140: 0 | G140: 0.579559287 | H140: 3.174052546 | I140: =($D$2*B140)+($E$2*C140)+($F$2*D140)+($G$2*E140)+($H$2*F140)+($I$2*G140) -> 3.136034317 | J140: =(H140-I140)^2 -> 0.001445385754 | L140: 2.336892911 | M140: 0.2346586911 | N140: 0.05588501196 | O140: =$G$2*E140 -> 0 | P140: =$H$2*F140 -> 0 | Q140: 0.5085977028 | R140: 0.03801822924 | U140: 0 | V140: =U140/$U$292 -> 0
A141: 1131 | B141: 1.001501773 | C141: 0.1873381907 | D141: 0.221534187 | E141: 1.273732759 | F141: 0 | G141: 0.607316385 | H141: 3.197415999 | I141: 3.173345014 | J141: 0.0005794122974 | L141: 2.340402394 | M141: 0.2437900517 | N141: 0.05619636302 | O141: 0 | P141: 0 | Q141: 0.5329562052 | R141: 0.02407098455 | U141: 0 | V141: 0
A142: 1132 | B142: 0.9994121727 | C142: 0.1922616343 | D142: 0.2206155867 | E142: 1.288506159 | F142: 0 | G142: 0.62923139 | H142: 3.216700648 | I142: 3.193867597 | J142: 0.0005213482197 | L142: 2.335519221 | M142: 0.2501971093 | N142: 0.05596334256 | O142: 0 | P142: 0 | Q142: 0.5521879239 | R142: 0.02283305104 | U142: 0 | V142: 0
A143: 1133 | B143: 0.992762334 | C143: 0.1939391328 | D143: 0.2179053134 | E143: 1.30467931 | F143: 0 | G143: 0.638798267 | H143: 3.227815296 | I143: 3.188218617 | J143: 0.001567896949 | L143: 2.319979261 | M143: 0.2523800995 | N143: 0.05527583015 | O143: 0 | P143: 0 | Q143: 0.5605834268 | R143: 0.03959667851 | U143: 0 | V143: 0
A144: 1134 | B144: 0.9856236563 | C144: 0.1981327551 | D144: 0.2145646672 | E144: 1.327124686 | F144: 0 | G144: 0.65806092 | H144: 3.226904734 | I144: 3.19305031 | J144: 0.001146122067 | L144: 2.303296935 | M144: 0.2578374139 | N144: 0.05442841166 | O144: 0 | P144: 0 | Q144: 0.5774875491 | R144: 0.03385442463 | U144: 0 | V144: 0
A145: 1135 | B145: 0.9781520798 | C145: 0.201031304 | D145: 0.2294729241 | E145: 1.335502491 | F145: 0 | G145: 0.673291198 | H145: 3.225766588 | I145: 3.19650926 | J145: 0.0008559912008 | L145: 2.285836661 | M145: 0.2616094017 | N145: 0.05821017477 | O145: 0 | P145: 0 | Q145: 0.5908530228 | R145: 0.0292573273 | U145: 0 | V145: 0
A146: 1136 | B146: 0.9680593495 | C146: 0.2038529382 | D146: 0.224638942 | E146: 1.357967013 | F146: 0 | G146: 0.685227208 | H146: 3.213513236 | I146: 3.185843853 | J146: 0.0007655947586 | L146: 2.262251031 | M146: 0.2652812977 | N146: 0.05698394321 | O146: 0 | P146: 0 | Q146: 0.6013275807 | R146: 0.02766938305 | U146: 0 | V146: 0
A147: 1137 | B147: 0.9531012805 | C147: 0.2072602305 | D147: 0.2219517076 | E147: 1.378886479 | F147: 0 | G147: 0.697165178 | H147: 3.19916133 | I147: 3.165117091 | J147: 0.001159010185 | L147: 2.227295626 | M147: 0.269715332 | N147: 0.05630227507 | O147: 0 | P147: 0 | Q147: 0.6118038585 | R147: 0.03404423865 | U147: 0 | V147: 0
A148: 1138 | B148: 0.9381947397 | C148: 0.2147870394 | D148: 0.216015639 | E148: 1.398568396 | F148: 0 | G148: 0.710689931 | H148: 3.177380871 | I148: 3.150439991 | J148: 0.0007258109789 | L148: 2.192460636 | M148: 0.2795102442 | N148: 0.05479647827 | O148: 0 | P148: 0 | Q148: 0.6236726327 | R148: 0.02694087933 | U148: 0 | V148: 0
A149: 1139 | B149: 0.921557939 | C149: 0.2185685779 | D149: 0.2153270154 | E149: 1.422754811 | F149: 0 | G149: 0.71773405 | H149: 3.152301993 | I149: 3.122489575 | J149: 0.0008887802815 | L149: 2.153582215 | M149: 0.2844312988 | N149: 0.05462179579 | O149: 0 | P149: 0 | Q149: 0.6298542656 | R149: 0.02981241824 | U149: 0 | V149: 0
A150: 1140 | B150: 0.9077294205 | C150: 0.2206507249 | D150: 0.2177989904 | E150: 1.448869238 | F150: 0 | G150: 0.724515455 | H150: 3.117482615 | I150: 3.099461531 | J150: 0.0003247594695 | L150: 2.121266448 | M150: 0.287140873 | N150: 0.05524885931 | O150: 0 | P150: 0 | Q150: 0.6358053513 | R150: 0.01802108403 | U150: 0 | V150: 0
A151: 1141 | B151: 0.8869371486 | C151: 0.2246961358 | D151: 0.2137908339 | E151: 1.477512218 | F151: 0 | G151: 0.730755384 | H151: 3.079115944 | I151: 3.060595823 | J151: 0.0003429948878 | L151: 2.072677135 | M151: 0.2924053144 | N151: 0.05423211413 | O151: 0 | P151: 0 | Q151: 0.6412812597 | R151: 0.01852012116 | U151: 0 | V151: 0
A152: 1142 | B152: 0.8725391088 | C152: 0.226261443 | D152: 0.2139234282 | E152: 1.507093277 | F152: 0 | G152: 0.734646775 | H152: 3.04373689 | I152: 3.0324347 | J152: 0.0001277395152 | L152: 2.039030458 | M152: 0.2944423061 | N152: 0.05426574918 | O152: 0 | P152: 0 | Q152: 0.6446961864 | R152: 0.01130219073 | U152: 0 | V152: 0
A153: 1143 | B153: 0.8534038726 | C153: 0.2303282513 | D153: 0.2200887171 | E153: 1.539795992 | F153: 0 | G153: 0.733906351 | H153: 3.0069525 | I153: 2.993924165 | J153: 0.0001697375097 | L153: 1.99431346 | M153: 0.2997345926 | N153: 0.05582969206 | O153: 0 | P153: 0 | Q153: 0.6440464204 | R153: 0.01302833488 | U153: 0 | V153: 0
A154: 1144 | B154: 0.8347371354 | C154: 0.2385396084 | D154: 0.2166593538 | E154: 1.577360591 | F154: 0 | G154: 0.732707837 | H154: 2.965939751 | I154: 2.959066049 | J154: 4.724778788e-05 | L154: 1.950691294 | M154: 0.3104203326 | N154: 0.05495976879 | O154: 0 | P154: 0 | Q154: 0.6429946532 | R154: 0.006873702632 | U154: 0 | V154: 0
A155: 1145 | B155: 0.8128336191 | C155: 0.2405032854 | D155: 0.2075003783 | E155: 1.622706803 | F155: 0 | G155: 0.731512847 | H155: 2.920294082 | I155: 2.907063258 | J155: 0.0001750546808 | L155: 1.899505122 | M155: 0.3129757374 | N155: 0.05263642032 | O155: 0 | P155: 0 | Q155: 0.6419459785 | R155: 0.01323082313 | U155: 0 | V155: 0
A156: 1146 | B156: 0.7941173878 | C156: 0.2409768349 | D156: 0.2149604556 | E156: 1.67797545 | F156: 0 | G156: 0.730318292 | H156: 2.881494619 | I156: 2.864785775 | J156: 0.0002791854809 | L156: 1.855767294 | M156: 0.3135919846 | N156: 0.05452881091 | O156: =$G$2*E156 -> 0 | P156: =$H$2*F156 -> 0 | Q156: 0.6408976855 | R156: 0.01670884439 | U156: 0 | V156: =U156/$U$292 -> 0
A157: 1147 | B157: 0.7788372681 | C157: 0.2474007329 | D157: 0.2131876264 | E157: 1.742285646 | F157: 0 | G157: 0.734740007 | H157: 2.845452286 | I157: 2.840868031 | J157: 2.101538731e-05 | L157: 1.820059291 | M157: 0.3219516385 | N157: 0.05407909905 | O157: 0 | P157: 0 | Q157: 0.6447780031 | R157: 0.004584254281 | U157: 0 | V157: 0
A158: 1148 | B158: 0.7718219866 | C158: 0.2489139927 | D158: 0.2161777368 | E158: 1.796547752 | F158: 0 | G158: 0.737555318 | H158: 2.827295465 | I158: 2.829672431 | J158: 5.649967032e-06 | L158: 1.803665329 | M158: 0.3239208989 | N158: 0.05483759747 | O158: 0 | P158: 0 | Q158: 0.6472486057 | R158: -0.00237696593 | U158: 0 | V158: 0
A159: 1149 | B159: 0.7623835278 | C159: 0.2518767334 | D159: 0.2200161616 | E159: 1.849259316 | F159: 0 | G159: 0.736022868 | H159: 2.811145234 | I159: 2.81110016 | J159: 2.03165006e-09 | L159: 1.781608662 | M159: 0.327776422 | N159: 0.05581128699 | O159: 0 | P159: 0 | Q159: 0.6459037898 | R159: 4.507382899e-05 | U159: 0 | V159: 0
A160: 1150 | B160: 0.7545187105 | C160: 0.2569288087 | D160: 0.2152737851 | E160: 1.895653046 | F160: 0 | G160: 0.732879726 | H160: 2.799076945 | I160: 2.795334087 | J160: 1.40089859e-05 | L160: 1.763229426 | M160: 0.3343508726 | N160: 0.05460829292 | O160: 0 | P160: 0 | Q160: 0.643145496 | R160: 0.003742857985 | U160: 0 | V160: 0
A161: 1151 | B161: 0.7482214326 | C161: 0.2618399426 | D161: 0.2141930182 | E161: 1.951104627 | F161: 0.004608294931 | G161: 0.729452345 | H161: 2.784009917 | I161: 2.783727174 | J161: 7.994327716e-08 | L161: 1.748513362 | M161: 0.3407419112 | N161: 0.05433413581 | O161: 0 | P161: 0 | Q161: 0.6401377655 | R161: 0.0002827424219 | U161: 0.0036 | V161: 0.004608294931
A162: 1152 | B162: 0.7418007584 | C162: 0.2593803275 | D162: 0.2132418882 | E162: 1.999786607 | F162: 0.009216589862 | G162: 0.725760361 | H162: 2.761511572 | I162: 2.762040751 | J162: 2.800311817e-07 | L162: 1.733508934 | M162: 0.3375411239 | N162: 0.0540928636 | O162: 0 | P162: 0 | Q162: 0.6368978303 | R162: -0.0005291797253 | U162: 0.0072 | V162: 0.009216589862
A163: 1153 | B163: 0.7363814925 | C163: 0.2648344076 | D163: 0.2186236469 | E163: 2.046790283 | F163: 0.01382488479 | G163: 0.721531153 | H163: 2.749349421 | I163: 2.754127906 | J163: 2.283391603e-05 | L163: 1.720844689 | M163: 0.3446387181 | N163: 0.05545804912 | O163: 0 | P163: 0 | Q163: 0.633186449 | R163: -0.004778484701 | U163: 0.0108 | V163: 0.01382488479
A164: 1154 | B164: 0.7266006429 | C164: 0.2712538444 | D164: 0.2199945669 | E164: 2.083096978 | F164: 0.01843317972 | G164: 0.716672891 | H164: 2.729330536 | I164: 2.735709302 | J164: 4.068865635e-05 | L164: 1.697987891 | M164: 0.3529925665 | N164: 0.05580580908 | O164: 0 | P164: 0 | Q164: 0.6289230355 | R164: -0.006378766052 | U164: 0.0144 | V164: 0.01843317972
A165: 1155 | B165: 0.7216180099 | C165: 0.2752659615 | D165: 0.2148607348 | E165: 2.116839975 | F165: 0.02304147465 | G165: 0.709805267 | H165: 2.710720466 | I165: 2.721957495 | J165: 0.0001262708288 | L165: 1.686344012 | M165: 0.3582136814 | N165: 0.05450351484 | O165: 0 | P165: 0 | Q165: 0.6228962875 | R165: -0.01123702936 | U165: 0.018 | V165: 0.02304147465
A166: 1156 | B166: 0.7119917447 | C166: 0.278552801 | D166: 0.2140526526 | E166: 2.172944838 | F166: 0.02764976959 | G166: 0.701516733 | H166: 2.695396424 | I166: 2.696260563 | J166: 7.467355237e-07 | L166: 1.663848461 | M166: 0.3624909662 | N166: 0.05429852941 | O166: 0 | P166: 0 | Q166: 0.6156226065 | R166: -0.0008641386021 | U166: 0.0216 | V166: 0.02764976959
A167: 1157 | B167: 0.7074152346 | C167: 0.2854140631 | D167: 0.2186743326 | E167: 2.218751823 | F167: 0.03225806452 | G167: 0.693230158 | H167: 2.676471815 | I167: 2.688394976 | J167: 0.0001421617534 | L167: 1.653153647 | M167: 0.371419778 | N167: 0.0554709065 | O167: 0 | P167: 0 | Q167: 0.6083506447 | R167: -0.01192316038 | U167: 0.0252 | V167: 0.03225806452
A168: 1158 | B168: 0.7019525765 | C168: 0.2876235199 | D168: 0.2145902507 | E168: 2.260012584 | F168: 0.03686635945 | G168: 0.684945545 | H168: 2.657443909 | I168: 2.670198331 | J168: 0.0001626752701 | L168: 1.640388 | M168: 0.374295025 | N168: 0.05443490142 | O168: 0 | P168: 0 | Q168: 0.6010804046 | R168: -0.01275442159 | U168: 0.0288 | V168: 0.03686635945
A169: 1159 | B169: 0.6937006203 | C169: 0.2901617019 | D169: 0.2159398512 | E169: 2.309182454 | F169: 0.04147465438 | G169: 0.66995058 | H169: 2.635603957 | I169: 2.641400801 | J169: 3.360340946e-05 | L169: 1.621104062 | M169: 0.3775980543 | N169: 0.05477725325 | O169: 0 | P169: 0 | Q169: 0.5879214321 | R169: -0.005796844785 | U169: 0.0324 | V169: 0.04147465438
A170: 1160 | B170: 0.6856317245 | C170: 0.2990343925 | D170: 0.2175252741 | E170: 2.361830396 | F170: 0.04608294931 | G170: 0.660617644 | H170: 2.617409468 | I170: 2.62630298 | J170: 7.909456983e-05 | L170: 1.602247916 | M170: 0.3891444117 | N170: 0.05517942594 | O170: 0 | P170: 0 | Q170: 0.5797312263 | R170: -0.008893512795 | U170: 0.036 | V170: 0.04608294931
A171: 1161 | B171: 0.6827773382 | C171: 0.3052208549 | D171: 0.2175939782 | E171: 2.397930947 | F171: 0.06067588326 | G171: 0.654370861 | H171: 2.599730471 | I171: 2.62221876 | J171: 0.0005057231788 | L171: 1.595577521 | M171: 0.3971950819 | N171: 0.05519685407 | O171: 0 | P171: 0 | Q171: 0.5742493032 | R171: -0.02248828982 | U171: 0.0474 | V171: 0.06067588326
A172: 1162 | B172: 0.671172529 | C172: 0.3099898084 | D172: 0.2140291322 | E172: 2.439149089 | F172: 0.0752688172 | G172: 0.647638703 | H172: 2.580267693 | I172: 2.594493418 | J172: 0.0002023712757 | L172: 1.568458325 | M172: 0.4034010958 | N172: 0.05429256302 | O172: =$G$2*E172 -> 0 | P172: =$H$2*F172 -> 0 | Q172: 0.5683414346 | R172: -0.01422572584 | U172: 0.0588 | V172: =U172/$U$292 -> 0.0752688172
A173: 1163 | B173: 0.664732464 | C173: 0.3166538684 | D173: 0.2109104851 | E173: 2.473354576 | F173: 0.08986175115 | G173: 0.639363149 | H173: 2.565158359 | I173: 2.580062467 | J173: 0.0002221324452 | L173: 1.553408583 | M173: 0.4120732812 | N173: 0.05350145883 | O173: 0 | P173: 0 | Q173: 0.5610791443 | R173: -0.01490410833 | U173: 0.0702 | V173: 0.08986175115
A174: 1164 | B174: 0.6583388421 | C174: 0.3221039829 | D174: 0.2128302821 | E174: 2.520940692 | F174: 0.1044546851 | G174: 0.631090317 | H174: 2.542425049 | I174: 2.565440783 | J174: 0.000529723991 | L174: 1.538467373 | M174: 0.4191657149 | N174: 0.05398845187 | O174: 0 | P174: 0 | Q174: 0.5538192428 | R174: -0.02301573355 | U174: 0.0816 | V174: 0.1044546851
A175: 1165 | B175: 0.6483774407 | C175: 0.3286753488 | D175: 0.2086840983 | E175: 2.567803963 | F175: 0.119047619 | G175: 0.622392584 | H175: 2.529510814 | I175: 2.542029078 | J175: 0.0001567069313 | L175: 1.515188645 | M175: 0.4277172742 | N175: 0.05293669344 | O175: 0 | P175: 0 | Q175: 0.5461864654 | R175: -0.01251826391 | U175: 0.093 | V175: 0.119047619
A176: 1166 | B176: 0.6427356547 | C176: 0.3403852053 | D176: 0.212465304 | E176: 2.614205201 | F176: 0.133640553 | G176: 0.612903871 | H176: 2.521350523 | I176: 2.536715559 | J176: 0.0002360843193 | L176: 1.502004395 | M176: 0.4429557394 | N176: 0.05389586824 | O176: 0 | P176: 0 | Q176: 0.5378595561 | R176: -0.01536503561 | U176: 0.1044 | V176: 0.133640553
A177: 1167 | B177: 0.6305961735 | C177: 0.3503698944 | D177: 0.2168859607 | E177: 2.647757066 | F177: 0.1482334869 | G177: 0.59971881 | H177: 2.498909349 | I177: 2.510891042 | J177: 0.0001435609691 | L177: 1.473635727 | M177: 0.4559491812 | N177: 0.05501725194 | O177: 0 | P177: 0 | Q177: 0.5262888818 | R177: -0.01198169308 | U177: 0.1158 | V177: 0.1482334869
A178: 1168 | B178: 0.6243803236 | C178: 0.3566065042 | D178: 0.2120893223 | E178: 2.666479066 | F178: 0.1628264209 | G178: 0.583566772 | H178: 2.480696797 | I178: 2.489090064 | J178: 7.044693892e-05 | L178: 1.459109952 | M178: 0.46406511 | N178: 0.05380049332 | O178: 0 | P178: 0 | Q178: 0.512114509 | R178: -0.008393267476 | U178: 0.1272 | V178: 0.1628264209
A179: 1169 | B179: 0.6208935653 | C179: 0.3640991105 | D179: 0.2148862495 | E179: 2.691575883 | F179: 0.1774193548 | G179: 0.574937069 | H179: 2.463695801 | I179: 2.483828703 | J179: 0.000405333744 | L179: 1.450961771 | M179: 0.4738155131 | N179: 0.05450998714 | O179: 0 | P179: 0 | Q179: 0.5045414319 | R179: -0.02013290203 | U179: 0.1386 | V179: 0.1774193548
A180: 1170 | B180: 0.6165555083 | C180: 0.3701683421 | D180: 0.2177081413 | E180: 2.706725094 | F180: 0.1920122888 | G180: 0.56429796 | H180: 2.44730179 | I180: 2.472968619 | J180: 0.0006587860993 | L180: 1.440824197 | M180: 0.4817136266 | N180: 0.05522581371 | O180: 0 | P180: 0 | Q180: 0.4952049818 | R180: -0.02566682877 | U180: 0.15 | V180: 0.1920122888
A181: 1171 | B181: 0.6083407744 | C181: 0.3744089724 | D181: 0.2143698334 | E181: 2.699396314 | F181: 0.2131336406 | G181: 0.552299584 | H181: 2.430886695 | I181: 2.44791404 | J181: 0.0002899304697 | L181: 1.421627243 | M181: 0.4872321142 | N181: 0.05437898837 | O181: 0 | P181: 0 | Q181: 0.4846756941 | R181: -0.01702734476 | U181: 0.1665 | V181: 0.2131336406
A182: 1172 | B182: 0.6059972622 | C182: 0.3810513046 | D182: 0.2180136308 | E182: 2.69469138 | F182: 0.2342549923 | G182: 0.542314683 | H182: 2.418086204 | I182: 2.443243388 | J182: 0.0006328838979 | L182: 1.416150706 | M182: 0.4958760245 | N182: 0.05530330692 | O182: 0 | P182: 0 | Q182: 0.4759133503 | R182: -0.02515718382 | U182: 0.183 | V182: 0.2342549923
A183: 1173 | B183: 0.5985833159 | C183: 0.3908886911 | D183: 0.220191739 | E183: 2.687471964 | F183: 0.2553763441 | G183: 0.534059238 | H183: 2.404636084 | I183: 2.432027416 | J183: 0.0007502850772 | L183: 1.398825107 | M183: 0.508677776 | N183: 0.05585582552 | O183: 0 | P183: 0 | Q183: 0.4686687069 | R183: -0.02739133215 | U183: 0.1995 | V183: 0.2553763441
A184: 1174 | B184: 0.5941714923 | C184: 0.3949222055 | D184: 0.220871147 | E184: 2.676869456 | F184: 0.2764976959 | G184: 0.525275941 | H184: 2.385491368 | I184: 2.419430897 | J184: 0.001151891634 | L184: 1.388515148 | M184: 0.513926736 | N184: 0.05602817029 | O184: 0 | P184: 0 | Q184: 0.460960842 | R184: -0.03393952907 | U184: 0.216 | V184: 0.2764976959
A185: 1175 | B185: 0.5885521481 | C185: 0.4008714801 | D185: 0.2195338569 | E185: 2.661007768 | F185: 0.2976190476 | G185: 0.513447941 | H185: 2.37083114 | I185: 2.403322098 | J185: 0.001055662378 | L185: 1.375383343 | M185: 0.521668745 | N185: 0.05568894122 | O185: 0 | P185: 0 | Q185: 0.4505810694 | R185: -0.0324909584 | U185: 0.2325 | V185: 0.2976190476
A186: 1176 | B186: 0.583114644 | C186: 0.4088257392 | D186: 0.2221140806 | E186: 2.638834432 | F186: 0.3187403994 | G186: 0.5042856 | H186: 2.357019284 | I186: 2.393580427 | J186: 0.001336717171 | L186: 1.362676478 | M186: 0.5320199139 | N186: 0.05634346405 | O186: 0 | P186: 0 | Q186: 0.4425405709 | R186: -0.03656114291 | U186: 0.249 | V186: 0.3187403994
A187: 1177 | B187: 0.5780366161 | C187: 0.4120916772 | D187: 0.224051621 | E187: 2.61764103 | F187: 0.3398617512 | G187: 0.486177595 | H187: 2.343854123 | I187: 2.370564348 | J187: 0.0007134361179 | L187: 1.350809671 | M187: 0.5362699986 | N187: 0.05683495805 | O187: 0 | P187: 0 | Q187: 0.4266497208 | R187: -0.02671022497 | U187: 0.2655 | V187: 0.3398617512
A188: 1178 | B188: 0.5719546037 | C188: 0.4159774758 | D188: 0.2257126253 | E188: 2.577428433 | F188: 0.3609831029 | G188: 0.473970491 | H188: 2.33114921 | I188: 2.351116955 | J188: 0.0003987108486 | L188: 1.336596659 | M188: 0.5413267308 | N188: 0.05725630342 | O188: =$G$2*E188 -> 0 | P188: =$H$2*F188 -> 0 | Q188: 0.4159372619 | R188: -0.01996774521 | U188: 0.282 | V188: =U188/$U$292 -> 0.3609831029
A189: 1179 | B189: 0.5693766386 | C189: 0.4235997877 | D189: 0.2242177077 | E189: 2.540932369 | F189: 0.3821044547 | G189: 0.468063168 | H189: 2.319005873 | I189: 2.349448479 | J189: 0.0009267522587 | L189: 1.33057223 | M189: 0.5512459245 | N189: 0.0568770891 | O189: 0 | P189: 0 | Q189: 0.410753235 | R189: -0.03044260598 | U189: 0.2985 | V189: 0.3821044547
A190: 1180 | B190: 0.5649546451 | C190: 0.4278636328 | D190: 0.2233692557 | E190: 2.513421119 | F190: 0.4032258065 | G190: 0.459983366 | H190: 2.299465158 | I190: 2.337357719 | J190: 0.001435846211 | L190: 1.320238505 | M190: 0.5567946224 | N190: 0.05666186312 | O190: 0 | P190: 0 | Q190: 0.4036627288 | R190: -0.03789256141 | U190: 0.315 | V190: 0.4032258065
A191: 1181 | B191: 0.5587189297 | C191: 0.4297574175 | D191: 0.2231539276 | E191: 2.477363561 | F191: 0.4189708141 | G191: 0.447618584 | H191: 2.285147757 | I191: 2.314344519 | J191: 0.0008524508952 | L191: 1.305666306 | M191: 0.5592590738 | N191: 0.05660724105 | O191: 0 | P191: 0 | Q191: 0.3928118981 | R191: -0.02919676172 | U191: 0.3273 | V191: 0.4189708141
A192: 1182 | B192: 0.5526209165 | C192: 0.4332004821 | D192: 0.2232804699 | E192: 2.43699805 | F192: 0.4347158218 | G192: 0.44079332 | H192: 2.268717222 | I192: 2.298617226 | J192: 0.0008940102467 | L192: 1.291415902 | M192: 0.5637396599 | N192: 0.0566393409 | O192: 0 | P192: 0 | Q192: 0.3868223234 | R192: -0.02990000413 | U192: 0.3396 | V192: 0.4347158218
A193: 1183 | B193: 0.5477774772 | C193: 0.4351383832 | D193: 0.2233261351 | E193: 2.390904093 | F193: 0.4504608295 | G193: 0.428924947 | H193: 2.253100828 | I193: 2.279416871 | J193: 0.00069253411 | L193: 1.280097303 | M193: 0.5662615216 | N193: 0.05665092475 | O193: 0 | P193: 0 | Q193: 0.3764071211 | R193: -0.02631604283 | U193: 0.3519 | V193: 0.4504608295
A194: 1184 | B194: 0.5444730335 | C194: 0.4365409389 | D194: 0.2233110738 | E194: 2.34732264 | F194: 0.4662058372 | G194: 0.4207134 | H194: 2.22977382 | I194: 2.266309996 | J194: 0.001334892131 | L194: 1.272375172 | M194: 0.5680867186 | N194: 0.05664710417 | O194: 0 | P194: 0 | Q194: 0.3692010008 | R194: -0.03653617565 | U194: 0.3642 | V194: 0.4662058372
A195: 1185 | B195: 0.5395120288 | C195: 0.4382463612 | D195: 0.224756475 | E195: 2.312326987 | F195: 0.4819508449 | G195: 0.406407947 | H195: 2.214626915 | I195: 2.244748756 | J195: 0.0009073253503 | L195: 1.260781835 | M195: 0.5703060473 | N195: 0.05701375769 | O195: 0 | P195: 0 | Q195: 0.356647116 | R195: -0.03012184175 | U195: 0.3765 | V195: 0.4819508449
A196: 1186 | B196: 0.5360723238 | C196: 0.4405541299 | D196: 0.2210175646 | E196: 2.279573826 | F196: 0.4976958525 | G196: 0.402256632 | H196: 2.191571046 | I196: 2.235122247 | J196: 0.001896707064 | L196: 1.252743613 | M196: 0.5733092312 | N196: 0.05606531191 | O196: 0 | P196: 0 | Q196: 0.3530040905 | R196: -0.04355120049 | U196: 0.3888 | V196: 0.4976958525
A197: 1187 | B197: 0.5302529691 | C197: 0.4390921741 | D197: 0.2228961666 | E197: 2.242381672 | F197: 0.5134408602 | G197: 0.397571584 | H197: 2.173287085 | I197: 2.215985677 | J197: 0.001823169698 | L197: 1.239144405 | M197: 0.5714067345 | N197: 0.05654185506 | O197: 0 | P197: 0 | Q197: 0.3488926825 | R197: -0.04269859129 | U197: 0.4011 | V197: 0.5134408602
A198: 1188 | B198: 0.5251779245 | C198: 0.4416776945 | D198: 0.2205574048 | E198: 2.197938622 | F198: 0.5291858679 | G198: 0.392393861 | H198: 2.163508562 | I198: 2.202353442 | J198: 0.001508924717 | L198: 1.227284569 | M198: 0.574771367 | N198: 0.05594858361 | O198: 0 | P198: 0 | Q198: 0.344348923 | R198: -0.03884488019 | U198: 0.4134 | V198: 0.5291858679
A199: 1189 | B199: 0.5218020195 | C199: 0.4441805999 | D199: 0.224005268 | E199: 2.168865701 | F199: 0.5449308756 | G199: 0.387039768 | H199: 2.145169916 | I199: 2.193897518 | J199: 0.002374379197 | L199: 1.21939544 | M199: 0.5780284895 | N199: 0.05682319974 | O199: 0 | P199: 0 | Q199: 0.3396503884 | R199: -0.048727602 | U199: 0.4257 | V199: 0.5449308756
A200: 1190 | B200: 0.515849302 | C200: 0.4462634078 | D200: 0.2250530239 | E200: 2.132908408 | F200: 0.5606758833 | G200: 0.381509305 | H200: 2.13088938 | I200: 2.178109562 | J200: 0.00222974564 | L200: 1.205484577 | M200: 0.5807389237 | N200: 0.05708898298 | O200: 0 | P200: 0 | Q200: 0.3347970785 | R200: -0.04722018255 | U200: 0.438 | V200: 0.5606758833
... 209 more rows

Sheet Graph and Results
A23: C | B23: µ(1130cm-1) | C23: =Deconvolution!D2 -> 2.34 | D23: cm-1 | F23: [NC] | G23: =Deconvolution!D5 -> 58.4 | H23: at.ppm | J23: fit range | L23: =Deconvolution!E8 -> 1001 to 1399
A24: A | B24: µ(1282cm-1) | C24: =Deconvolution!E2 -> 1.30 | D24: cm-1 | F24: [NA] | G24: =Deconvolution!E5 -> 21.5 | H24: at.ppm
A25: X | B25: µ(1332cm-1) | C25: =Deconvolution!F2 -> 0.25 | D25: cm-1 | F25: [NX] | G25: =Deconvolution!F5 -> 1.4 | H25: at.ppm
A26: B | B26: µ(1282cm-1) | C26: =Deconvolution!G2 -> 0.00 | D26: cm-1 | F26: [NB] | G26: =Deconvolution!G5 -> 0.0 | H26: at.ppm | J26: %IaB | K26: =Deconvolution!J7 -> 0
A27: D | B27: µ(1282cm-1) | C27: =Deconvolution!H2 -> 0.00 | D27: cm-1 | J27: %IaA | K27: =Deconvolution!J5 -> 22.05
A28: Y | B28: µ(1145-1150cm-1) | C28: =Deconvolution!J2 -> 0.64 | D28: cm-1 | F28: [NY] | G28: =Deconvolution!I5 -> 16.10 | H28: at.ppm | J28: [Ntot] | K28: =Deconvolution!K5 -> 97.4 | L28: at.ppm | M28: Fit Quality | N28: sum of squares
N29: =Deconvolution!K11 -> 0.5099219393
N30: cosine similarity (SC) | P30: (SC close to 0 indicates a high-quality fit)
N31: =Deconvolution!K13 -> 0.02144152574 | P31: (SC greater than 0.7 indicates a poor-quality fit)

Sheet Residence T - C to A
A1: Mantle Residence Time andTemperature (C to A aggregation)
A3: C | B3: µ(1130cm-1) | C3: =Deconvolution!D2 -> 2.34 | D3: cm-1 | F3: [NC] | G3: =Deconvolution!D5 -> 58.4 | H3: at.ppm | J3: fit range | L3: =Deconvolution!E8 -> 1001 to 1399
A4: A | B4: µ(1282cm-1) | C4: =Deconvolution!E2 -> 1.30 | D4: cm-1 | F4: [NA] | G4: =Deconvolution!E5 -> 21.5 | H4: at.ppm
A5: X | B5: µ(1332cm-1) | C5: =Deconvolution!F2 -> 0.25 | D5: cm-1 | F5: [NX] | G5: =Deconvolution!F5 -> 1.4 | H5: at.ppm
A6: B | B6: µ(1282cm-1) | C6: =Deconvolution!G2 -> 0.00 | D6: cm-1 | F6: [NB] | G6: =Deconvolution!G5 -> 0.0 | H6: at.ppm | J6: %IaB | K6: =Deconvolution!J7 -> 0
A7: D | B7: µ(1282cm-1) | C7: =Deconvolution!H2 -> 0.00 | D7: cm-1 | J7: %IaA | K7: =Deconvolution!J5 -> 22.05
A8: Y | B8: µ(1145-1150cm-1) | C8: =Deconvolution!J2 -> 0.64 | D8: cm-1 | F8: [NY] | G8: =Deconvolution!I5 -> 16.10 | H8: at.ppm | J8: [Ntot] | K8: =Deconvolution!K5 -> 97.4 | L8: at.ppm
L10: sample | M10: %IaA | N10: Ntot (at.ppm) | O10: Add more sample data to plot here
M11: =K7 -> 22.05 | N11: =K8 -> 97.4
B45: Time (Ma) | C45: 10 | D45: 20 | E45: 30 | F45: 60 | G45: 85 | H45: 150 | I45: 180 | J45: 350
B46: Temp (oC) | C46: 800 | D46: 800 | E46: 800 | F46: 800 | G46: 800 | H46: 800 | I46: 800 | J46: 800
B48: Change Times (Ma) and Temperatures (°C) to modify isotherms (or isochrons) above
A102: Formula used in this sheet
C103: activation energy (eV) | F103: rate constant (A)
A104: E | C104: 5.5 | F104: 146129000
A105: R | B105: =8.6173324*10^-5 -> 8.6173324e-05
A106: -E/R | B106: =-(C104/B105) -> -63824.85605
A107: C0
A108: C
B109: 273.15
A110: A | B110: =F104 -> 146129000
B112: time in secs | C112: =(60*60*24*365.25*1000000)*C45 -> 315576000000000 | D112: =(60*60*24*365.25*1000000)*D45 -> 631152000000000 | E112: =(60*60*24*365.25*1000000)*E45 -> 946728000000000 | F112: =(60*60*24*365.25*1000000)*F45 -> 1893456000000000 | G112: =(60*60*24*365.25*1000000)*G45 -> 2682396000000000 | H112: =(60*60*24*365.25*1000000)*H45 -> 4733640000000000 | I112: 5680368000000000 | J112: 1.104516e+16
B114: C0 | C114: %B | D114: %B | E114: %B | F114: %B | G114: %B | H114: %B | I114: %B | J114: %B
B116: 10 | C116: =((B116-(B116/(((EXP(1/((C$46+$B$109)/$B$106)))*(B116*$C$112*$B$110))+1)))/B116)*100 -> 0.6784519562 | D116: =((B116-(B116/(((EXP(1/((D$46+$B$109)/$B$106)))*(B116*$D$112*$B$110))+1)))/B116)*100 -> 1.347760008 | E116: =((B116-(B116/(((EXP(1/((E$46+$B$109)/$B$106)))*(B116*$E$112*$B$110))+1)))/B116)*100 -> 2.008107776 | F116: =((B116-(B116/(((EXP(1/((F$46+$B$109)/$B$106)))*(B116*$F$112*$B$110))+1)))/B116)*100 -> 3.93715327 | G116: =((B116-(B116/(((EXP(1/((G$46+$B$109)/$B$106)))*(B116*$G$112*$B$110))+1)))/B116)*100 -> 5.487610616 | H116: =((B116-(B116/(((EXP(1/((H$46+$B$109)/$B$106)))*(B116*$H$112*$B$110))+1)))/B116)*100 -> 9.294004379 | I116: =((B116-(B116/(((EXP(1/((I$46+$B$109)/$B$106)))*(B116*$I$112*$B$110))+1)))/B116)*100 -> 10.94927994 | J116: =((B116-(B116/(((EXP(1/((J$46+$B$109)/$B$106)))*(B116*$J$112*$B$110))+1)))/B116)*100 -> 19.2949757
B117: 11 | C117: 0.7457911683 | D117: 1.480540596 | E117: 2.204491696 | F117: =((B117-(B117/(((EXP(1/((F$46+$B$109)/$B$106)))*(B117*$F$112*$B$110))+1)))/B117)*100 -> 4.313884174 | G117: =((B117-(B117/(((EXP(1/((G$46+$B$109)/$B$106)))*(B117*$G$112*$B$110))+1)))/B117)*100 -> 6.003427206 | H117: =((B117-(B117/(((EXP(1/((H$46+$B$109)/$B$106)))*(B117*$H$112*$B$110))+1)))/B117)*100 -> 10.1292634 | I117: =((B117-(B117/(((EXP(1/((I$46+$B$109)/$B$106)))*(B117*$I$112*$B$110))+1)))/B117)*100 -> 11.91376084 | J117: =((B117-(B117/(((EXP(1/((J$46+$B$109)/$B$106)))*(B117*$J$112*$B$110))+1)))/B117)*100 -> 20.82269979
B118: 12 | C118: 0.8130391314 | D118: 1.612964232 | E118: 2.400090052 | F118: 4.68767176 | G118: 6.513644054 | H118: 10.94927994 | I118: 12.85757359 | J118: 22.2936596
B119: 13 | C119: 0.8801960309 | D119: 1.745032356 | E119: 2.594907546 | F119: 5.058550387 | G119: 7.018351854 | H119: 11.75446748 | I119: 13.78137551 | J119: 23.71096116
B120: 14 | C120: 0.9472620515 | D120: 1.876746396 | E120: 2.788948846 | F120: 5.426553881 | G120: 7.517639352 | H120: 12.54522464 | I120: 14.68579634 | J120: 25.0774879
B121: 15 | C121: 1.014237378 | D121: 2.008107776 | E121: 2.982218582 | F121: 5.791715546 | G121: 8.011593398 | H121: 13.32193592 | I121: 15.57143966 | J121: 26.39592035
B122: 16 | C122: 1.081122193 | D122: 2.139117908 | E122: 3.174721345 | F122: 6.154068174 | G122: 8.500298999 | H122: 14.08497224 | I122: 16.43888424 | J122: 27.66875356
B123: 17 | C123: 1.147916681 | D123: 2.2697782 | E123: 3.366461693 | F123: 6.513644054 | G123: 8.983839361 | H123: 14.83469162 | I123: 17.28868532 | J123: 28.89831297
B124: 18 | C124: 1.214621025 | D124: 2.400090052 | E124: 3.557444146 | F124: 6.870474982 | G124: 9.462295943 | H124: 15.57143966 | I124: 18.12137577 | J124: 30.08676852
B125: 19 | C125: 1.281235407 | D125: 2.530054855 | E125: 3.747673188 | F125: 7.224592269 | G125: 9.935748499 | H125: 16.29555009 | I125: 18.93746722 | J125: 31.23614748
B126: 20 | C126: 1.347760008 | D126: 2.659673994 | E126: 3.93715327 | F126: 7.576026755 | G126: 10.40427512 | H126: 17.00734534 | I126: 19.73745111 | J126: 32.34834592
B127: 21 | C127: 1.414195011 | D127: 2.788948846 | E127: 4.125888805 | F127: 7.924808811 | G127: 10.8679523 | H127: 17.70713691 | I127: 20.52179966 | J127: 33.42513923
B128: 22 | C128: 1.480540596 | D128: 2.917880782 | E128: 4.313884174 | F128: 8.270968353 | G128: 11.32685492 | H128: 18.39522591 | I128: 21.29096681 | J128: 34.46819153
B129: 23 | C129: 1.546796943 | D129: 3.046471163 | E129: 4.501143721 | F129: 8.614534849 | G129: 11.78105637 | H129: 19.07190347 | I129: 22.04538909 | J129: 35.47906424
B130: 24 | C130: 1.612964232 | D130: 3.174721345 | E130: 4.68767176 | F130: 8.955537325 | G130: 12.2306285 | H130: 19.73745111 | I130: 22.78548648 | J130: 36.45922393
B131: 25 | C131: 1.679042644 | D131: 3.302632677 | E131: 4.873472566 | F131: 9.294004379 | G131: 12.67564175 | H131: 20.3921412 | I131: 23.51166313 | J131: 37.41004936
B132: 26 | C132: 1.745032356 | D132: 3.430206499 | E132: 5.058550387 | F132: 9.629964183 | G132: 13.11616509 | H132: 21.03623728 | I132: 24.22430815 | J132: 38.33283799
B133: 27 | C133: 1.810933548 | D133: 3.557444146 | E133: 5.242909432 | F133: 9.963444492 | G133: 13.55226615 | H133: 21.66999443 | I133: 24.92379626 | J133: 39.22881187
B134: 28 | C134: 1.876746396 | D134: 3.684346944 | E134: 5.426553881 | F134: 10.29447266 | G134: 13.98401118 | H134: 22.2936596 | I134: 25.6104885 | J134: 40.09912307
B135: 29 | C135: 1.94247108 | D135: 3.810916215 | E135: 5.609487881 | F135: 10.62307562 | G135: 14.41146512 | H135: 22.90747195 | I135: 26.28473278 | J135: 40.94485857
B136: 30 | C136: 2.008107776 | D136: 3.93715327 | E136: 5.791715546 | F136: 10.94927994 | G136: 14.83469162 | H136: 23.51166313 | I136: 26.94686456 | J136: 41.76704481
B137: 31 | C137: 2.073656659 | D137: 4.063059417 | E137: 5.97324096 | F137: 11.27311179 | G137: 15.2537531 | H137: 24.1064576 | I137: 27.59720731 | J137: 42.56665189
B138: 32 | C138: 2.139117908 | D138: 4.188635954 | E138: 6.154068174 | F138: 11.59459695 | G138: 15.66871074 | H138: 24.69207288 | I138: 28.2360731 | J138: 43.34459731
B139: 33 | C139: 2.204491696 | D139: 4.313884174 | E139: 6.334201209 | F139: 11.91376084 | G139: 16.07962451 | H139: 25.26871982 | I139: 28.8637631 | J139: 44.10174954
B140: 34 | C140: 2.2697782 | D140: 4.438805363 | E140: 6.513644054 | F140: 12.2306285 | G140: 16.48655326 | H140: 25.83660288 | I140: 29.480568 | J140: 44.83893125
B141: 35 | C141: 2.334977594 | D141: 4.563400801 | E141: 6.692400669 | F141: 12.54522464 | G141: 16.88955467 | H141: 26.39592035 | I141: 30.08676852 | J141: 45.55692226
B142: 36 | C142: 2.400090052 | D142: 4.68767176 | E142: 6.870474982 | F142: 12.85757359 | G142: 17.28868532 | H142: 26.94686456 | I142: 30.68263581 | J142: 46.25646231
B143: 37 | C143: 2.465115748 | D143: 4.811619505 | E143: 7.047870892 | F143: 13.16769934 | G143: 17.68400071 | H143: 27.48962215 | I143: 31.26843183 | J143: 46.9382536
B144: 38 | C144: 2.530054855 | D144: 4.935245296 | E144: 7.224592269 | F144: 13.47562554 | G144: 18.07555529 | H144: 28.02437425 | I144: 31.84440978 | J144: 47.60296317
B145: 39 | C145: 2.594907546 | D145: 5.058550387 | E145: 7.400642953 | F145: 13.78137551 | G145: 18.46340246 | H145: 28.55129667 | I145: 32.41081444 | J145: 48.25122502
B146: 40 | C146: 2.659673994 | D146: 5.181536022 | E146: 7.576026755 | F146: 14.08497224 | G146: 18.84759465 | H146: 29.07056012 | I146: 32.96788253 | J146: 48.88364217
B147: 41 | C147: 2.72435437 | D147: 5.304203442 | E147: 7.750747456 | F147: 14.3864384 | G147: 19.22818326 | H147: 29.5823304 | I147: 33.515843 | J147: 49.50078852
B148: 42 | C148: 2.788948846 | D148: 5.426553881 | E148: 7.924808811 | F148: 14.68579634 | G148: 19.60521877 | H148: 30.08676852 | I148: 34.05491739 | J148: 50.10321057
B149: 43 | C149: 2.853457593 | D149: 5.548588565 | E149: 8.098214544 | F149: 14.98306809 | G149: 19.9787507 | H149: 30.58403095 | I149: 34.58532014 | J149: 50.69142907
B150: 44 | C150: 2.917880782 | D150: 5.670308715 | E150: 8.270968353 | F150: 15.27827538 | G150: 20.34882766 | H150: 31.07426971 | I150: 35.1072588 | J150: 51.2659405
B151: 45 | C151: 2.982218582 | D151: 5.791715546 | E151: 8.443073907 | F151: 15.57143966 | G151: 20.71549736 | H151: 31.55763257 | I151: 35.62093437 | J151: 51.82721844
B152: 46 | C152: 3.046471163 | D152: 5.912810266 | E152: 8.614534849 | F152: 15.86258204 | G152: 21.07880664 | H152: 32.03426318 | I152: 36.12654154 | J152: 52.37571494
B153: 47 | C153: 3.110638694 | D153: 6.033594077 | E153: 8.785354792 | F153: 16.15172338 | G153: 21.43880149 | H153: 32.50430122 | I153: 36.62426893 | J153: 52.91186166
B154: 48 | C154: 3.174721345 | D154: 6.154068174 | E154: 8.955537325 | F154: 16.43888424 | G154: 21.79552706 | H154: 32.96788253 | I154: 37.11429931 | J154: 53.43607105
B155: 49 | C155: 3.238719283 | D155: 6.274233748 | E155: 9.125086009 | F155: 16.72408489 | G155: 22.14902768 | H155: 33.42513923 | I155: 37.59680987 | J155: 53.94873742
B156: 50 | C156: 3.302632677 | D156: 6.394091982 | E156: 9.294004379 | F156: 17.00734534 | G156: 22.49934689 | H156: 33.87619989 | I156: 38.07197238 | J156: 54.45023786
B157: 51 | C157: 3.366461693 | D157: 6.513644054 | E157: 9.462295943 | F157: 17.28868532 | G157: 22.84652743 | H157: 34.32118959 | I157: 38.53995341 | J157: 54.94093324
B158: 52 | C158: 3.430206499 | D158: 6.632891135 | E158: 9.629964183 | F158: 17.56812429 | G158: 23.19061132 | H158: 34.76023009 | I158: 39.00091457 | J158: 55.42116904
B159: 53 | C159: 3.493867261 | D159: 6.751834391 | E159: 9.797012555 | F159: 17.84568146 | G159: 23.53163978 | H159: 35.19343988 | I159: 39.45501263 | J159: 55.89127616
B160: 54 | C160: 3.557444146 | D160: 6.870474982 | E160: 9.963444492 | F160: 18.12137577 | G160: 23.86965335 | H160: 35.62093437 | I160: 39.90239972 | J160: 56.3515717
B161: 55 | C161: 3.620937319 | D161: 6.988814061 | E161: 10.1292634 | F161: 18.39522591 | G161: 24.20469182 | H161: 36.0428259 | I161: 40.34322352 | J161: 56.80235965
B162: 56 | C162: 3.684346944 | D162: 7.106852776 | E162: 10.29447266 | F162: 18.66725033 | G162: 24.5367943 | H162: 36.45922393 | I162: 40.77762742 | J162: 57.24393157
B163: 57 | C163: 3.747673188 | D163: 7.224592269 | E163: 10.45907562 | F163: 18.93746722 | G163: 24.86599921 | H163: 36.87023504 | I163: 41.20575063 | J163: 57.67656723
B164: 58 | C164: 3.810916215 | D164: 7.342033678 | E164: 10.62307562 | F164: 19.20589454 | G164: 25.19234432 | H164: 37.27596311 | I164: 41.6277284 | J164: 58.10053518
B165: 59 | C165: 3.874076188 | D165: 7.459178131 | E165: 10.78647597 | F165: 19.47255001 | G165: 25.51586672 | H165: 37.67650934 | I165: 42.04369209 | J165: 58.51609331
B166: 60 | C166: 3.93715327 | D166: 7.576026755 | E166: 10.94927994 | F166: 19.73745111 | G166: 25.83660288 | H166: 38.07197238 | I166: 42.45376938 | J166: 58.9234894
B167: 61 | C167: 4.000147626 | D167: 7.692580668 | E167: 11.11149081 | F167: 20.0006151 | G167: 26.15458864 | H167: 38.46244837 | I167: 42.85808433 | J167: 59.32296157
B168: 62 | C168: 4.063059417 | D168: 7.808840984 | E168: 11.27311179 | F168: 20.26205902 | G168: 26.46985923 | H168: 38.84803107 | I168: 43.25675756 | J168: 59.71473879
B169: 63 | C169: 4.125888805 | D169: 7.924808811 | E169: 11.43414611 | F169: 20.52179966 | G169: 26.78244927 | H169: 39.22881187 | I169: 43.64990632 | J169: 60.09904126
B170: 64 | C170: 4.188635954 | D170: 8.040485251 | E170: 11.59459695 | F170: 20.77985362 | G170: 27.09239281 | H170: 39.60487994 | I170: 44.03764467 | J170: 60.47608089
B171: 65 | C171: 4.251301023 | D171: 8.155871401 | E171: 11.75446748 | F171: 21.03623728 | G171: 27.39972331 | H171: 39.97632221 | I171: 44.42008351 | J171: 60.84606163
B172: 66 | C172: 4.313884174 | D172: 8.270968353 | E172: 11.91376084 | F172: 21.29096681 | G172: 27.70447368 | H172: 40.34322352 | I172: 44.79733077 | J172: 61.20917988
B173: 67 | C173: 4.376385567 | D173: 8.385777192 | E173: 12.07248014 | F173: 21.54405815 | G173: 28.00667628 | H173: 40.70566663 | I173: 45.16949144 | J173: 61.56562482
B174: 68 | C174: 4.438805363 | D174: 8.500298999 | E174: 12.2306285 | F174: 21.79552706 | G174: 28.30636292 | H174: 41.06373232 | I174: 45.53666771 | J174: 61.91557872
B175: 69 | C175: 4.501143721 | D175: 8.614534849 | E175: 12.38820898 | F175: 22.04538909 | G175: 28.60356489 | H175: 41.41749939 | I175: 45.89895905 | J175: 62.25921731
B176: 70 | C176: 4.563400801 | D176: 8.728485811 | E176: 12.54522464 | F176: 22.2936596 | G176: 28.89831297 | H176: 41.76704481 | I176: 46.25646231 | J176: 62.59671
B177: 71 | C177: 4.625576761 | D177: 8.84215295 | E177: 12.7016785 | F177: 22.54035374 | G177: 29.19063741 | H177: 42.11244369 | I177: 46.60927176 | J177: 62.92822021
B178: 72 | C178: 4.68767176 | D178: 8.955537325 | E178: 12.85757359 | F178: 22.78548648 | G178: 29.480568 | H178: 42.45376938 | I178: 46.95747927 | J178: 63.25390561
B179: 73 | C179: 4.749685955 | D179: 9.06863999 | E179: 13.01291288 | F179: 23.0290726 | G179: 29.76813402 | H179: 42.79109351 | I179: 47.30117427 | J179: 63.57391838
B180: 74 | C180: =((B180-(B180/(((EXP(1/((C$46+$B$109)/$B$106)))*(B180*$C$112*$B$110))+1)))/B180)*100 -> 4.811619505 | D180: =((B180-(B180/(((EXP(1/((D$46+$B$109)/$B$106)))*(B180*$D$112*$B$110))+1)))/B180)*100 -> 9.181461994 | E180: =((B180-(B180/(((EXP(1/((E$46+$B$109)/$B$106)))*(B180*$E$112*$B$110))+1)))/B180)*100 -> 13.16769934 | F180: 23.27112668 | G180: 30.05336427 | H180: 43.12448603 | I180: 47.64044392 | J180: 63.88840544
B181: 75 | C181: 4.873472566 | D181: 9.294004379 | E181: 13.32193592 | F181: =((B181-(B181/(((EXP(1/((F$46+$B$109)/$B$106)))*(B181*$F$112*$B$110))+1)))/B181)*100 -> 23.51166313 | G181: =((B181-(B181/(((EXP(1/((G$46+$B$109)/$B$106)))*(B181*$G$112*$B$110))+1)))/B181)*100 -> 30.3362871 | H181: =((B181-(B181/(((EXP(1/((H$46+$B$109)/$B$106)))*(B181*$H$112*$B$110))+1)))/B181)*100 -> 43.45401529 | I181: =((B181-(B181/(((EXP(1/((I$46+$B$109)/$B$106)))*(B181*$I$112*$B$110))+1)))/B181)*100 -> 47.97537316 | J181: =((B181-(B181/(((EXP(1/((J$46+$B$109)/$B$106)))*(B181*$J$112*$B$110))+1)))/B181)*100 -> 64.19750869
B182: 76 | C182: 4.935245296 | D182: 9.406268185 | E182: 13.47562554 | F182: 23.75069619 | G182: 30.61693039 | H182: 43.77974805 | I182: 48.30604473 | J182: 64.50136522
B183: 77 | C183: 4.996937851 | D183: 9.518254443 | E183: 13.62877111 | F183: 23.98823991 | G183: 30.89532159 | H183: 44.10174954 | I183: 48.63253931 | J183: 64.80010747
B184: 78 | C184: 5.058550387 | D184: 9.629964183 | E184: 13.78137551 | F184: 24.22430815 | G184: 31.1714877 | H184: 44.42008351 | I184: 48.95493556 | J184: 65.09386349
B185: 79 | C185: 5.120083058 | D185: 9.741398426 | E185: 13.93344161 | F185: 24.45891463 | G185: 31.44545528 | H185: 44.73481226 | I185: 49.27331016 | J185: 65.38275709
B186: 80 | C186: 5.181536022 | D186: 9.852558192 | E186: 14.08497224 | F186: 24.69207288 | G186: 31.71725049 | H186: 45.0459967 | I186: 49.58773788 | J186: 65.66690801
B187: 81 | C187: 5.242909432 | D187: 9.963444492 | E187: 14.23597024 | F187: 24.92379626 | G187: 31.98689906 | H187: 45.35369635 | I187: 49.89829168 | J187: 65.94643207
B188: 82 | C188: 5.304203442 | D188: 10.07405834 | E188: 14.3864384 | F188: 25.15409799 | G188: 32.25442632 | H188: 45.65796943 | I188: 50.2050427 | J188: 66.22144138
B189: 83 | C189: 5.365418207 | D189: 10.18440072 | E189: 14.53637952 | F189: 25.38299111 | G189: 32.51985721 | H189: 45.95887286 | I189: 50.50806038 | J189: 66.49204445
B190: 84 | C190: 5.426553881 | D190: 10.29447266 | E190: 14.68579634 | F190: 25.6104885 | G190: 32.78321627 | H190: 46.25646231 | I190: 50.80741245 | J190: 66.75834631
B191: 85 | C191: 5.487610616 | D191: 10.40427512 | E191: 14.83469162 | F191: 25.83660288 | G191: 33.04452767 | H191: 46.55079222 | I191: 51.10316503 | J191: 67.02044873
B192: 86 | C192: 5.548588565 | D192: 10.51380912 | E192: 14.98306809 | F192: 26.06134684 | G192: 33.30381519 | H192: 46.84191586 | I192: 51.39538265 | J192: 67.27845026
B193: 87 | C193: 5.609487881 | D193: 10.62307562 | E193: 15.13092845 | F193: 26.28473278 | G193: 33.56110226 | H193: 47.12988533 | I193: 51.68412831 | J193: 67.53244638
B194: 88 | C194: 5.670308715 | D194: 10.73207561 | E194: 15.27827538 | F194: 26.50677299 | G194: 33.81641193 | H194: 47.41475162 | I194: 51.96946353 | J194: 67.78252967
B195: 89 | C195: 5.73105122 | D195: 10.84081006 | E195: 15.42511157 | F195: 26.72747959 | G195: 34.06976692 | H195: 47.69656462 | I195: 52.25144838 | J195: 68.02878984
B196: 90 | C196: 5.791715546 | D196: 10.94927994 | E196: 15.57143966 | F196: 26.94686456 | G196: 34.32118959 | H196: 47.97537316 | I196: 52.53014151 | J196: 68.2713139
B197: 91 | C197: 5.852301845 | D197: 11.05748622 | E197: 15.71726227 | F197: 27.16493972 | G197: 34.57070196 | H197: 48.25122502 | I197: 52.80560023 | J197: 68.51018623
B198: 92 | C198: 5.912810266 | D198: 11.16542985 | E198: 15.86258204 | F198: 27.38171679 | G198: 34.81832573 | H198: 48.524167 | I198: 53.07788052 | J198: 68.74548869
B199: 93 | C199: 5.97324096 | D199: 11.27311179 | E199: 16.00740155 | F199: 27.59720731 | G199: 35.06408224 | H199: 48.79424489 | I199: 53.34703709 | J199: 68.97730071
B200: 94 | C200: 6.033594077 | D200: 11.38053299 | E200: 16.15172338 | F200: 27.8114227 | G200: 35.30799255 | H200: 49.06150355 | I200: 53.61312337 | J200: 69.20569939
B201: 95 | C201: 6.093869765 | D201: 11.48769439 | E201: 16.29555009 | F201: 28.02437425 | G201: 35.55007738 | H201: 49.32598687 | I201: 53.87619161 | J201: 69.43075957
B202: 96 | C202: 6.154068174 | D202: 11.59459695 | E202: 16.43888424 | F202: 28.2360731 | G202: 35.79035714 | H202: 49.58773788 | I202: 54.13629286 | J202: 69.65255391
B203: 97 | C203: 6.214189453 | D203: 11.70124158 | E203: 16.58172833 | F203: 28.44653029 | G203: 36.02885196 | H203: 49.84679869 | I203: 54.39347703 | J203: 69.87115299
B204: 98 | C204: 6.274233748 | D204: 11.80762924 | E204: 16.72408489 | F204: 28.6557567 | G204: 36.26558164 | H204: 50.10321057 | I204: 54.64779293 | J204: 70.08662535
B205: 99 | C205: 6.334201209 | D205: 11.91376084 | E205: 16.8659564 | F205: 28.8637631 | G205: 36.50056572 | H205: 50.35701394 | I205: 54.89928827 | J205: 70.29903762
B206: 100 | C206: 6.394091982 | D206: 12.0196373 | E206: 17.00734534 | F206: 29.07056012 | G206: 36.73382342 | H206: 50.60824839 | I206: 55.14800972 | J206: 70.50845452
B207: 110 | C207: 6.988814061 | D207: 13.06456964 | E207: 18.39522591 | F207: 31.07426971 | G207: 38.9754871 | H207: 52.98747018 | I207: 57.49222871 | J207: 72.45089905
B208: 120 | C208: 7.576026755 | D208: 14.08497224 | E208: 19.73745111 | F208: 32.96788253 | G208: 41.06373232 | H208: 55.14800972 | I208: 59.60357464 | J208: 74.15327919
B209: 130 | C209: 8.155871401 | D209: 15.08169884 | E209: 21.03623728 | F209: 34.76023009 | G209: 43.01378779 | H209: 57.11869205 | I209: 61.5151057 | J209: 75.65750882
B210: 140 | C210: 8.728485811 | D210: 16.055564 | E210: 22.2936596 | F210: 36.45922393 | G210: 44.83893125 | H210: 58.9234894 | I210: 63.25390561 | J210: 76.99628117
B211: 150 | C211: 9.294004379 | D211: 17.00734534 | E211: 23.51166313 | F211: 38.07197238 | G211: 46.55079222 | H211: 60.58250124 | I211: 64.84237496 | J211: 78.19547227
B212: 160 | C212: 9.852558192 | D212: 17.93778562 | E212: 24.69207288 | F212: 39.60487994 | G212: 48.15960001 | H212: 62.11270593 | I212: 66.2992015 | J212: 79.27582979
B213: 170 | C213: 10.40427512 | D213: 18.84759465 | E213: 25.83660288 | F213: 41.06373232 | G213: 49.67438834 | H213: 63.52854395 | I213: 67.64009876 | J213: 80.25418353
B214: 180 | C214: 10.94927994 | D214: 19.73745111 | E214: 26.94686456 | F214: 42.45376938 | G214: 51.10316503 | H214: 64.84237496 | I214: 68.8783751 | J214: 81.14432854
B215: 190 | C215: 11.48769439 | D215: 20.60800424 | E215: 28.02437425 | F215: 43.77974805 | G215: 52.45305361 | H215: 66.06483962 | I215: 70.02537695 | J215: 81.95767964
B216: 200 | C216: 12.0196373 | D216: 21.45987541 | E216: 29.07056012 | F216: 45.0459967 | G216: 53.73041212 | H216: 67.20514837 | I216: 71.09083748 | J216: 82.70376354
B217: 210 | C217: 12.54522464 | D217: 22.2936596 | E217: 30.08676852 | F217: 46.25646231 | G217: 54.94093324 | H217: 68.2713139 | I217: 72.08315348 | J217: 83.39059374
B218: 220 | C218: 13.06456964 | D218: 23.1099268 | E218: 31.07426971 | F218: 47.41475162 | G218: 56.08972908 | H218: 69.27033975 | I218: 73.00960712 | J218: 84.02495951
B219: 230 | C219: 13.57778286 | D219: 23.90922329 | E219: 32.03426318 | F219: 48.524167 | G219: 57.18140339 | H219: 70.20837431 | I219: 73.87654493 | J219: 84.61265104
B220: 240 | C220: 14.08497224 | D220: 24.69207288 | E220: 32.96788253 | F220: 49.58773788 | G220: 58.2201132 | H220: 71.09083748 | I220: 74.68952343 | J220: 85.15863673
B221: 250 | C221: 14.58624324 | D221: 25.45897802 | E221: 33.87619989 | F221: 50.60824839 | G221: 59.20962171 | H221: 71.92252547 | I221: 75.45342833 | J221: 85.66720397
B222: 260 | C222: 15.08169884 | D222: 26.21042093 | E222: 34.76023009 | F222: 51.5882617 | G222: 60.15334389 | H222: 72.70769799 | I222: 76.17257275 | J222: 86.14207195
B223: 270 | C223: 15.57143966 | D223: 26.94686456 | E223: 35.62093437 | F223: 52.53014151 | G223: 61.05438578 | H223: 73.45015121 | I223: 76.85077881 | J223: 86.58648278
B224: 280 | C224: 16.055564 | D224: 27.66875356 | E224: 36.45922393 | F224: 53.43607105 | G224: 61.91557872 | H224: 74.15327919 | I224: 77.49144545 | J224: 87.00327562
B225: 290 | C225: 16.53416793 | D225: 28.37651518 | E225: 37.27596311 | F225: 54.30807006 | G225: 62.73950903 | H225: 74.82012571 | I225: 78.09760553 | J225: 87.39494736
B226: 300 | C226: 17.00734534 | D226: 29.07056012 | E226: 38.07197238 | F226: 55.14800972 | G226: 63.52854395 | H226: 75.45342833 | I226: 78.67197373 | J226: 87.76370272
B227: 310 | C227: 17.475188 | D227: 29.7512833 | E227: 38.84803107 | F227: 55.95762614 | G227: 64.28485435 | H227: 76.05565594 | I227: 79.21698727 | J227: 88.11149577
B228: 320 | C228: 17.93778562 | D228: 30.41906463 | E228: 39.60487994 | F228: 56.73853229 | G228: 65.0104347 | H228: 76.62904098 | I228: 79.73484046 | J228: 88.44006455
B229: 330 | C229: 18.39522591 | D229: 31.07426971 | E229: 40.34322352 | F229: 57.49222871 | G229: 65.70712064 | H229: 77.17560702 | I229: 80.22751421 | J229: 88.75096011
B230: 340 | C230: 18.84759465 | D230: 31.71725049 | E230: 41.06373232 | F230: 58.2201132 | G230: 66.37660443 | H230: 77.69719269 | I230: 80.69680138 | J230: 89.04557105
B231: 350 | C231: 19.2949757 | D231: 32.34834592 | E231: 41.76704481 | F231: 58.9234894 | G231: 67.02044873 | H231: 78.19547227 | I231: 81.14432854 | J231: 89.32514418
B232: 360 | C232: 19.73745111 | D232: 32.96788253 | E232: 42.45376938 | F232: 59.60357464 | G232: 67.64009876 | H232: 78.67197373 | I232: 81.57157488 | J232: 89.5908022
B233: 370 | C233: 20.17510112 | D233: 33.57617499 | E233: 43.12448603 | F233: 60.26150693 | G233: 68.23689312 | H233: 79.12809429 | I233: 81.97988846 | J233: 89.84355879
B234: 380 | C234: 20.60800424 | D234: 34.17352666 | E234: 43.77974805 | F234: 60.89835133 | G234: 68.81207345 | H234: 79.56511417 | I234: 82.37050046 | J234: 90.08433148
B235: 390 | C235: 21.03623728 | D235: 34.76023009 | E235: 44.42008351 | F235: 61.5151057 | G235: 69.36679305 | H235: 79.98420858 | I235: 82.74453759 | J235: 90.31395282
B236: 400 | C236: 21.45987541 | D236: 35.33656747 | E236: 45.0459967 | F236: 62.11270593 | G236: 69.90212461 | H236: 80.38645822 | I236: 83.1030329 | J236: 90.53317998
B237: 410 | C237: 21.87899218 | D237: 35.90281113 | E237: 45.65796943 | F237: 62.69203066 | G237: 70.41906712 | H237: 80.77285867 | I237: 83.44693537 | J237: 90.74270311
B238: 420 | C238: 22.2936596 | D238: 36.45922393 | E238: 46.25646231 | F238: 63.25390561 | G238: 70.91855211 | H238: 81.14432854 | I238: 83.77711824 | J238: 90.94315258
B239: 430 | C239: 22.70394814 | D239: 37.00605968 | E239: 46.84191586 | F239: 63.79910747 | G239: 71.40144921 | H239: 81.50171682 | I239: 84.09438645 | J239: 91.13510531
B240: 440 | C240: 23.1099268 | D240: 37.54356355 | E240: 47.41475162 | F240: 64.32836755 | G240: 71.86857125 | H240: 81.84580931 | I240: 84.39948316 | J240: 91.31909034
B241: 450 | C241: 23.51166313 | D241: 38.07197238 | E241: 47.97537316 | F241: 64.84237496 | G241: 72.32067881 | H241: 82.17733442 | I241: 84.69309562 | J241: 91.49559367
B242: 460 | C242: 23.90922329 | D242: 38.59151507 | E242: 48.524167 | F242: 65.3417797 | G242: 72.75848434 | H242: 82.49696831 | I242: 84.97586027 | J242: 91.66506257
B243: 470 | C243: 24.30267206 | D243: 39.10241293 | E243: 49.06150355 | F243: 65.82719532 | G243: 73.18265593 | H243: 82.80533948 | I243: 85.24836737 | J243: 91.82790935
B244: 480 | C244: =((B244-(B244/(((EXP(1/((C$46+$B$109)/$B$106)))*(B244*$C$112*$B$110))+1)))/B244)*100 -> 24.69207288 | D244: =((B244-(B244/(((EXP(1/((D$46+$B$109)/$B$106)))*(B244*$D$112*$B$110))+1)))/B244)*100 -> 39.60487994 | E244: =((B244-(B244/(((EXP(1/((E$46+$B$109)/$B$106)))*(B244*$E$112*$B$110))+1)))/B244)*100 -> 49.58773788 | F244: 66.2992015 | G244: 73.59382068 | H244: 83.1030329 | I244: 85.51116514 | J244: 91.98451472
B245: 490 | C245: 25.0774879 | D245: 40.09912307 | E245: 50.10321057 | F245: =((B245-(B245/(((EXP(1/((F$46+$B$109)/$B$106)))*(B245*$F$112*$B$110))+1)))/B245)*100 -> 66.75834631 | G245: =((B245-(B245/(((EXP(1/((G$46+$B$109)/$B$106)))*(B245*$G$112*$B$110))+1)))/B245)*100 -> 73.99256783 | H245: =((B245-(B245/(((EXP(1/((H$46+$B$109)/$B$106)))*(B245*$H$112*$B$110))+1)))/B245)*100 -> 83.39059374 | I245: =((B245-(B245/(((EXP(1/((I$46+$B$109)/$B$106)))*(B245*$I$112*$B$110))+1)))/B245)*100 -> 85.7647634 | J245: =((B245-(B245/(((EXP(1/((J$46+$B$109)/$B$106)))*(B245*$J$112*$B$110))+1)))/B245)*100 -> 92.13523076
B246: 500 | C246: 25.45897802 | D246: 40.58534259 | E246: 50.60824839 | F246: 67.20514837 | G246: 74.37945154 | H246: 83.66853066 | I246: 86.00963691 | J246: 92.28038355
B247: 510 | C247: 25.83660288 | D247: 41.06373232 | E247: 51.10316503 | F247: 67.64009876 | G247: 74.75499349 | H247: 83.93731885 | I247: 86.24622829 | J247: 92.42027552
B248: 520 | C248: 26.21042093 | D248: 41.53447986 | E248: 51.5882617 | F248: 68.06366288 | G248: 75.11968521 | H248: 84.1974027 | I248: 86.47495074 | J248: 92.5551876
B249: 530 | C249: 26.58048945 | D249: 41.99776689 | E249: 52.06382782 | F249: 68.47628205 | G249: 75.47399023 | H249: 84.4491983 | I249: 86.69619041 | J249: 92.68538105
B250: 540 | C250: 26.94686456 | D250: 42.45376938 | E250: 52.53014151 | F250: 68.8783751 | G250: 75.81834606 | H250: 84.69309562 | I250: 86.91030859 | J250: 92.81109917
B251: 550 | C251: 27.30960129 | D251: 42.90265779 | E251: 52.98747018 | F251: 69.27033975 | G251: 76.15316597 | H251: 84.92946056 | I251: 87.1176437 | J251: 92.93256881
B252: 560 | C252: 27.66875356 | D252: 43.34459731 | E252: 53.43607105 | F252: 69.65255391 | G252: 76.47884066 | H252: 85.15863673 | I252: 87.31851302 | J252: 93.05000175
B253: 570 | C253: 28.02437425 | D253: 43.77974805 | E253: 53.87619161 | F253: 70.02537695 | G253: 76.79573975 | H253: 85.3809472 | I253: 87.51321437 | J253: 93.16359593
B254: 580 | C254: 28.37651518 | D254: 44.20826526 | E254: 54.30807006 | F254: 70.38915079 | G254: 77.10421324 | H254: 85.59669593 | I254: 87.70202754 | J254: 93.27353655
B255: 590 | C255: 28.7252272 | D255: 44.63029947 | E255: 54.73193578 | F255: 70.74420094 | G255: 77.40459274 | H255: 85.80616921 | I255: 87.88521567 | J255: 93.37999708
B256: 600 | C256: 29.07056012 | D256: 45.0459967 | E256: 55.14800972 | F256: 71.09083748 | G256: 77.69719269 | H256: 86.00963691 | I256: 88.06302644 | J256: 93.48314019
B257: 610 | C257: 29.41256285 | D257: 45.4554986 | E257: 55.55650477 | F257: 71.42935598 | G257: 77.98231145 | H257: 86.20735366 | I257: 88.23569318 | J257: 93.58311856
B258: 620 | C258: 29.7512833 | D258: 45.85894266 | E258: 55.95762614 | F258: 71.76003832 | G258: 78.26023233 | H258: 86.39955988 | I258: 88.40343594 | J258: 93.68007565
B259: 630 | C259: 30.08676852 | D259: 46.25646231 | E259: 56.3515717 | F259: 72.08315348 | G259: 78.53122448 | H259: 86.58648278 | I259: 88.5664624 | J259: 93.77414636
B260: 640 | C260: 30.41906463 | D260: 46.64818709 | E260: 56.73853229 | F260: 72.39895826 | G260: 78.79554383 | H260: 86.76833725 | I260: 88.72496869 | J260: 93.86545771
B261: 650 | C261: 30.74821689 | D261: 47.0342428 | E261: 57.11869205 | F261: 72.70769799 | G261: 79.05343384 | H261: 86.94532667 | I261: 88.87914024 | J261: 93.95412934
B262: 660 | C262: 31.07426971 | D262: 47.41475162 | E262: 57.49222871 | F262: 73.00960712 | G262: 79.30512628 | H262: 87.1176437 | I262: 89.02915247 | J262: 94.04027408
B263: 670 | C263: 31.39726666 | D263: 47.78983225 | E263: 57.85931385 | F263: 73.30490985 | G263: 79.5508419 | H263: 87.28547094 | I263: 89.17517146 | J263: 94.12399845
B264: 680 | C264: 31.71725049 | D264: 48.15960001 | E264: 58.2201132 | F264: 73.59382068 | G264: 79.79079109 | H264: 87.44898162 | I264: 89.31735455 | J264: 94.20540302
B265: 690 | C265: 32.03426318 | D265: 48.524167 | E265: 58.57478681 | F265: 73.87654493 | G265: 80.02517449 | H265: 87.60834016 | I265: 89.45585095 | J265: 94.2845829
B266: 700 | C266: 32.34834592 | D266: 48.88364217 | E266: 58.9234894 | F266: 74.15327919 | G266: 80.25418353 | H266: 87.76370272 | I266: 89.5908022 | J266: 94.36162805
B267: 710 | C267: 32.65953914 | D267: 49.23813146 | E267: 59.26637048 | F267: 74.42421185 | G267: 80.47800098 | H267: 87.91521775 | I267: 89.72234271 | J267: 94.43662366
B268: 720 | C268: 32.96788253 | D268: 49.58773788 | E268: 59.60357464 | F268: 74.68952343 | G268: 80.69680138 | H268: 88.06302644 | I268: 89.85060017 | J268: 94.50965043
B269: 730 | C269: 33.27341506 | D269: 49.93256163 | E269: 59.9352417 | F269: 74.94938709 | G269: 80.91075155 | H269: 88.20726312 | I269: 89.97569596 | J269: 94.58078489
B270: 740 | C270: 33.57617499 | D270: 50.27270019 | E270: 60.26150693 | F270: 75.20396892 | G270: 81.12001102 | H270: 88.34805573 | I270: 90.09774558 | J270: 94.65009965
B271: 750 | C271: 33.87619989 | D271: 50.60824839 | E271: 60.58250124 | F271: 75.45342833 | G271: 81.32473236 | H271: 88.48552619 | I271: 90.21685896 | J271: 94.71766366
B272: 760 | C272: 34.17352666 | D272: 50.93929855 | E272: 60.89835133 | F272: 75.69791837 | G272: 81.52506162 | H272: 88.6197907 | I272: 90.33314078 | J272: 94.78354242
B273: 770 | C273: 34.46819153 | D273: 51.2659405 | E273: 61.20917988 | F273: 75.93758609 | G273: 81.72113863 | H273: 88.75096011 | I273: 90.44669083 | J273: 94.8477982
B274: 780 | C274: 34.76023009 | D274: 51.5882617 | E274: 61.5151057 | F274: 76.17257275 | G274: 81.91309737 | H274: 88.87914024 | I274: 90.55760427 | J274: 94.91049025
B275: 790 | C275: 35.04967729 | D275: 51.90634734 | E275: 61.81624388 | F275: 76.40301418 | G275: 82.10106623 | H275: 89.00443212 | I275: 90.66597186 | J275: 94.97167497
B276: 800 | C276: 35.33656747 | D276: 52.22028034 | E276: 62.11270593 | F276: 76.62904098 | G276: 82.28516832 | H276: 89.12693227 | I276: 90.77188027 | J276: 95.03140607
B277: 810 | C277: 35.62093437 | D277: 52.53014151 | E277: 62.40459993 | F277: 76.85077881 | G277: 82.46552176 | H277: 89.24673298 | I277: 90.87541227 | J277: 95.08973474
B278: 820 | C278: 35.90281113 | D278: 52.83600954 | E278: 62.69203066 | F278: 77.06834859 | G278: 82.64223988 | H278: 89.36392251 | I278: 90.97664695 | J278: 95.14670982
B279: 830 | C279: 36.18223031 | D279: 53.13796114 | E279: 62.97509971 | F279: 77.28186677 | G279: 82.81543149 | H279: 89.4785853 | I279: 91.07565995 | J279: 95.20237786
B280: 840 | C280: 36.45922393 | D280: 53.43607105 | E280: 63.25390561 | F280: 77.49144545 | G280: 82.98520112 | H280: 89.5908022 | I280: 91.17252359 | J280: 95.25678334
B281: 850 | C281: 36.73382342 | D281: 53.73041212 | E281: 63.52854395 | F281: 77.69719269 | G281: 83.15164919 | H281: 89.70065065 | I281: 91.26730712 | J281: 95.30996873
B282: 860 | C282: 37.00605968 | D282: 54.02105537 | E282: 63.79910747 | F282: 77.89921259 | G282: 83.31487223 | H282: 89.80820485 | I282: 91.36007683 | J282: 95.36197462
B283: 870 | C283: 37.27596311 | D283: 54.30807006 | E283: 64.06568621 | F283: 78.09760553 | G283: 83.47496309 | H283: 89.91353592 | I283: 91.45089622 | J283: 95.41283981
B284: 880 | C284: 37.54356355 | D284: 54.5915237 | E284: 64.32836755 | F284: 78.29246831 | G284: 83.63201105 | H284: 90.01671209 | I284: 91.53982616 | J284: 95.46260143
B285: 890 | C285: 37.80889035 | D285: 54.87148217 | E285: 64.58723633 | F285: 78.48389434 | G285: 83.78610206 | H285: 90.11779883 | I285: 91.626925 | J285: 95.51129501
B286: 900 | C286: 38.07197238 | D286: 55.14800972 | E286: 64.84237496 | F286: 78.67197373 | G286: 83.93731885 | H286: 90.21685896 | I286: 91.71224873 | J286: 95.55895456
B287: 910 | C287: 38.33283799 | D287: 55.42116904 | E287: 65.09386349 | F287: 78.85679348 | G287: 84.0857411 | H287: 90.31395282 | I287: 91.79585106 | J287: 95.60561268
B288: 920 | C288: 38.59151507 | D288: 55.69102128 | E288: 65.3417797 | F288: 79.03843761 | G288: 84.23144556 | H288: 90.40913838 | I288: 91.87778356 | J288: 95.6513006
B289: 930 | C289: 38.84803107 | D289: 55.95762614 | E289: 65.58619915 | F289: 79.21698727 | G289: 84.3745062 | H289: 90.50247136 | I289: 91.95809577 | J289: 95.69604827
B290: 940 | C290: 39.10241293 | D290: 56.2210419 | E290: 65.82719532 | F290: 79.39252086 | G290: 84.51499434 | H290: 90.59400531 | I290: 92.03683528 | J290: 95.73988442
B291: 950 | C291: 39.35468719 | D291: 56.48132544 | E291: 66.06483962 | F291: 79.56511417 | G291: 84.65297875 | H291: 90.68379176 | I291: 92.11404784 | J291: 95.78283663
B292: 960 | C292: 39.60487994 | D292: 56.73853229 | E292: 66.2992015 | F292: 79.73484046 | G292: 84.78852576 | H292: 90.77188027 | I292: 92.18977745 | J292: 95.82493136
... 94 more rows

Sheet Residence T - A to B
A1: Mantle Residence Time andTemperature (A to B aggregation)
A3: C | B3: µ(1130cm-1) | C3: =Deconvolution!D2 -> 2.34 | D3: cm-1 | F3: [NC] | G3: =Deconvolution!D5 -> 58.4 | H3: at.ppm | J3: fit range | L3: =Deconvolution!E8 -> 1001 to 1399
A4: A | B4: µ(1282cm-1) | C4: =Deconvolution!E2 -> 1.30 | D4: cm-1 | F4: [NA] | G4: =Deconvolution!E5 -> 21.5 | H4: at.ppm
A5: X | B5: µ(1332cm-1) | C5: =Deconvolution!F2 -> 0.25 | D5: cm-1 | F5: [NX] | G5: =Deconvolution!F5 -> 1.4 | H5: at.ppm
A6: B | B6: µ(1282cm-1) | C6: =Deconvolution!G2 -> 0.00 | D6: cm-1 | F6: [NB] | G6: =Deconvolution!G5 -> 0.0 | H6: at.ppm | J6: %IaB | K6: =Deconvolution!J7 -> 0
A7: D | B7: µ(1282cm-1) | C7: =Deconvolution!H2 -> 0.00 | D7: cm-1 | J7: %IaA | K7: =Deconvolution!J5 -> 22.05
A8: Y | B8: µ(1145-1150cm-1) | C8: =Deconvolution!J2 -> 0.64 | D8: cm-1 | F8: [NY] | G8: =Deconvolution!I5 -> 16.10 | H8: at.ppm | J8: [Ntot] | K8: =Deconvolution!K5 -> 97.4 | L8: at.ppm
L10: sample | M10: %IaB | N10: Ntot (at.ppm) | O10: Add more sample data to plot here
M11: =K6 -> 0.00 | N11: =K8 -> 97.4
B45: Time (Ma) | C45: 100 | D45: 200 | E45: 300 | F45: 400 | G45: 600 | H45: 800 | I45: 1500 | J45: 2000
B46: Temp (oC) | C46: 1200 | D46: 1200 | E46: 1200 | F46: 1200 | G46: 1200 | H46: 1200 | I46: 1200 | J46: 1200
B48: Change Times (Ma) and Temperatures (°C) to modify isotherms (or isochrons) above
A102: Formula used in this sheet
A104: E | C104: 7.03
A105: R | B105: =8.6173324*10^-5 -> 8.6173324e-05
A106: -E/R | B106: =-(C104/B105) -> -81579.77056
A107: C0
A108: C
B109: 273.15
A110: A | B110: 294000
B112: time in secs | C112: =(60*60*24*365.25*1000000)*C45 -> 3155760000000000 | D112: =(60*60*24*365.25*1000000)*D45 -> 6311520000000000 | E112: =(60*60*24*365.25*1000000)*E45 -> 9467280000000000 | F112: =(60*60*24*365.25*1000000)*F45 -> 1.262304e+16 | G112: =(60*60*24*365.25*1000000)*G45 -> 1.893456e+16 | H112: =(60*60*24*365.25*1000000)*H45 -> 2.524608e+16 | I112: 4.73364e+16 | J112: 6.31152e+16
B114: C0 | C114: %B | D114: %B | E114: %B | F114: %B | G114: %B | H114: %B | I114: %B | J114: %B
B116: 10 | C116: =((B116-(B116/(((EXP(1/((C$46+$B$109)/$B$106)))*(B116*$C$112*$B$110))+1)))/B116)*100 -> 0.8196237956 | D116: =((B116-(B116/(((EXP(1/((D$46+$B$109)/$B$106)))*(B116*$D$112*$B$110))+1)))/B116)*100 -> 1.625921155 | E116: =((B116-(B116/(((EXP(1/((E$46+$B$109)/$B$106)))*(B116*$E$112*$B$110))+1)))/B116)*100 -> 2.419214472 | F116: =((B116-(B116/(((EXP(1/((F$46+$B$109)/$B$106)))*(B116*$F$112*$B$110))+1)))/B116)*100 -> 3.199815827 | G116: =((B116-(B116/(((EXP(1/((G$46+$B$109)/$B$106)))*(B116*$G$112*$B$110))+1)))/B116)*100 -> 4.724141821 | H116: =((B116-(B116/(((EXP(1/((H$46+$B$109)/$B$106)))*(B116*$H$112*$B$110))+1)))/B116)*100 -> 6.201204529 | I116: =((B116-(B116/(((EXP(1/((I$46+$B$109)/$B$106)))*(B116*$I$112*$B$110))+1)))/B116)*100 -> 11.02882832 | J116: =((B116-(B116/(((EXP(1/((J$46+$B$109)/$B$106)))*(B116*$J$112*$B$110))+1)))/B116)*100 -> 14.18367343
B117: 11 | C117: 0.9008478189 | D117: 1.785610009 | E117: 2.654713598 | F117: =((B117-(B117/(((EXP(1/((F$46+$B$109)/$B$106)))*(B117*$F$112*$B$110))+1)))/B117)*100 -> 3.508570629 | G117: =((B117-(B117/(((EXP(1/((G$46+$B$109)/$B$106)))*(B117*$G$112*$B$110))+1)))/B117)*100 -> 5.172122165 | H117: =((B117-(B117/(((EXP(1/((H$46+$B$109)/$B$106)))*(B117*$H$112*$B$110))+1)))/B117)*100 -> 6.779285248 | I117: =((B117-(B117/(((EXP(1/((I$46+$B$109)/$B$106)))*(B117*$I$112*$B$110))+1)))/B117)*100 -> 11.99937213 | J117: =((B117-(B117/(((EXP(1/((J$46+$B$109)/$B$106)))*(B117*$J$112*$B$110))+1)))/B117)*100 -> 15.38384139
B118: 12 | C118: 0.9819389137 | D118: 1.944781263 | E118: 2.889078764 | F118: 3.81536208 | G118: 5.61590948 | H118: 7.350284204 | I118: 12.94897004 | J118: 16.55090291
B119: 13 | C119: 1.062897406 | D119: 2.103437431 | E119: 3.122318142 | F119: 4.120208846 | G119: 6.055562361 | H119: 7.914330737 | I119: 13.87829288 | J119: 17.68620921
B120: 14 | C120: 1.143723621 | D120: 2.261581007 | E120: 3.354439823 | F120: 4.42312936 | G120: 6.491138318 | H120: 8.471551058 | I120: 14.78798313 | J120: 18.79103896
B121: 15 | C121: 1.224417883 | D121: 2.419214472 | E121: 3.585451823 | F121: 4.724141821 | G121: 6.922693795 | H121: 9.022068339 | I121: 15.67865643 | J121: 19.86660309
B122: 16 | C122: 1.304980514 | D122: 2.57634029 | E122: 3.81536208 | F122: 5.023264201 | G122: 7.350284204 | H122: 9.566002807 | I122: 16.55090291 | J122: 20.91404922
B123: 17 | C123: 1.385411837 | D123: 2.73296091 | E123: 4.044178457 | F123: 5.320514245 | G123: 7.773963939 | H123: 10.10347183 | I123: 17.40528856 | J123: 21.93446573
B124: 18 | C124: 1.465712172 | D124: 2.889078764 | E124: 4.271908742 | F124: 5.61590948 | G124: 8.193786406 | H124: 10.63459001 | I124: 18.24235643 | J124: 22.92888557
B125: 19 | C125: 1.545881838 | D125: 3.044696269 | E125: 4.498560649 | F125: 5.90946721 | G125: 8.609804042 | H125: 11.15946924 | I125: 19.06262776 | J125: 23.89828968
B126: 20 | C126: 1.625921155 | D126: 3.199815827 | E126: 4.724141821 | F126: 6.201204529 | G126: 9.022068339 | H126: 11.67821882 | I126: 19.86660309 | J126: 24.8436103
B127: 21 | C127: 1.705830439 | D127: 3.354439823 | E127: 4.948659827 | F127: 6.491138318 | G127: 9.430629862 | H127: 12.1909455 | I127: 20.65476325 | J127: 25.76573389
B128: 22 | C128: 1.785610009 | D128: 3.508570629 | E128: 5.172122165 | F128: 6.779285248 | G128: 9.835538274 | H128: 12.69775356 | I128: 21.42757036 | J128: 26.66550394
B129: 23 | C129: 1.865260179 | D129: 3.662210601 | E129: 5.394536263 | F129: 7.065661788 | G129: 10.23684235 | H129: 13.1987449 | I129: 22.1854687 | J129: 27.54372354
B130: 24 | C130: 1.944781263 | D130: 3.81536208 | E130: 5.61590948 | F130: 7.350284204 | G130: 10.63459001 | H130: 13.69401909 | I130: 22.92888557 | J130: 28.40115777
B131: 25 | C131: 2.024173577 | D131: 3.968027391 | E131: 5.836249105 | F131: 7.633168563 | G131: 11.02882832 | H131: 14.18367343 | I131: 23.65823209 | J131: 29.23853589
B132: 26 | C132: 2.103437431 | D132: 4.120208846 | E132: 6.055562361 | F132: 7.914330737 | G132: 11.41960351 | H132: 14.66780303 | I132: 24.37390398 | J132: 30.05655348
B133: 27 | C133: 2.182573137 | D133: 4.271908742 | E133: 6.273856403 | F133: 8.193786406 | G133: 11.80696103 | H133: 15.14650088 | I133: 25.07628225 | J133: 30.8558743
B134: 28 | C134: 2.261581007 | D134: 4.42312936 | E134: 6.491138318 | F134: 8.471551058 | G134: 12.1909455 | H134: 15.61985788 | I134: 25.76573389 | J134: 31.63713209
B135: 29 | C135: 2.340461349 | D135: 4.573872969 | E135: 6.707415129 | F135: 8.747639996 | G135: 12.5716008 | H135: 16.08796291 | I135: 26.44261248 | J135: 32.40093232
B136: 30 | C136: 2.419214472 | D136: 4.724141821 | E136: 6.922693795 | F136: 9.022068339 | G136: 12.94897004 | H136: 16.55090291 | I136: 27.10725887 | J136: 33.14785366
B137: 31 | C137: 2.497840683 | D137: 4.873938157 | E137: 7.13698121 | F137: 9.294851023 | G137: 13.32309559 | H137: 17.00876288 | I137: 27.76000164 | J137: 33.87844948
B138: 32 | C138: 2.57634029 | D138: 5.023264201 | E138: 7.350284204 | F138: 9.566002807 | G138: 13.69401909 | H138: 17.46162598 | I138: 28.40115777 | J138: 34.59324926
B139: 33 | C139: 2.654713598 | D139: 5.172122165 | E139: 7.562609545 | F139: 9.835538274 | G139: 14.06178146 | H139: 17.90957358 | I139: 29.03103303 | J139: 35.29275978
B140: 34 | C140: 2.73296091 | D140: 5.320514245 | E140: 7.773963939 | F140: 10.10347183 | G140: 14.42642296 | H140: 18.35268528 | I140: 29.64992255 | J140: 35.97746642
B141: 35 | C141: 2.811082531 | D141: 5.468442627 | E141: 7.984354031 | F141: 10.36981772 | G141: 14.78798313 | H141: 18.79103896 | I141: 30.25811125 | J141: 36.64783419
B142: 36 | C142: 2.889078764 | D142: 5.61590948 | E142: 8.193786406 | F142: 10.63459001 | G142: 15.14650088 | H142: 19.22471084 | I142: 30.8558743 | J142: 37.30430885
B143: 37 | C143: 2.96694991 | D143: 5.76291696 | E143: 8.402267588 | F143: 10.8978026 | G143: 15.50201444 | H143: 19.65377555 | I143: 31.44347747 | J143: 37.94731785
B144: 38 | C144: 3.044696269 | D144: 5.90946721 | E144: 8.609804042 | F144: 11.15946924 | G144: 15.85456141 | H144: 20.0783061 | I144: 32.02117763 | J144: 38.57727131
B145: 39 | C145: 3.122318142 | D145: 6.055562361 | E145: 8.816402176 | F145: 11.41960351 | G145: 16.20417878 | H145: 20.49837399 | I145: 32.58922301 | J145: 39.19456285
B146: 40 | C146: 3.199815827 | D146: 6.201204529 | E146: 9.022068339 | F146: 11.67821882 | G146: 16.55090291 | H146: 20.91404922 | I146: 33.14785366 | J146: 39.79957042
B147: 41 | C147: 3.277189622 | D147: 6.346395818 | E147: 9.226808822 | F147: 11.93532845 | G147: 16.89476956 | H147: 21.32540033 | I147: 33.69730169 | J147: 40.39265708
B148: 42 | C148: 3.354439823 | D148: 6.491138318 | E148: 9.430629862 | F148: 12.1909455 | G148: 17.23581391 | H148: 21.73249445 | I148: 34.23779168 | J148: 40.97417173
B149: 43 | C149: 3.431566728 | D149: 6.635434106 | E149: 9.633537638 | F149: 12.44508293 | G149: 17.57407057 | H149: 22.13539732 | I149: 34.76954094 | J149: 41.54444976
B150: 44 | C150: 3.508570629 | D150: 6.779285248 | E150: 9.835538274 | F150: 12.69775356 | G150: 17.90957358 | H150: 22.53417333 | I150: 35.29275978 | J150: 42.10381376
B151: 45 | C151: 3.585451823 | D151: 6.922693795 | E151: 10.03663784 | F151: 12.94897004 | G151: 18.24235643 | H151: 22.92888557 | I151: 35.80765186 | J151: 42.65257407
B152: 46 | C152: 3.662210601 | D152: 7.065661788 | E152: 10.23684235 | F152: 13.1987449 | G152: 18.57245207 | H152: 23.31959584 | I152: 36.31441436 | J152: 43.19102936
B153: 47 | C153: 3.738847257 | D153: 7.208191253 | E153: 10.43615777 | F153: 13.4470905 | G153: 18.8998929 | H153: 23.70636469 | I153: 36.81323833 | J153: 43.71946722
B154: 48 | C154: 3.81536208 | D154: 7.350284204 | E154: 10.63459001 | F154: 13.69401909 | G154: 19.22471084 | H154: 24.08925148 | I154: 37.30430885 | J154: 44.23816461
B155: 49 | C155: 3.891755362 | D155: 7.491942644 | E155: 10.83214492 | F155: 13.93954274 | G155: 19.54693727 | H155: 24.46831435 | I155: 37.78780529 | J155: 44.74738839
B156: 50 | C156: 3.968027391 | D156: 7.633168563 | E156: 11.02882832 | F156: 14.18367343 | G156: 19.86660309 | H156: 24.8436103 | I156: 38.26390155 | J156: 45.24739574
B157: 51 | C157: 4.044178457 | D157: 7.773963939 | E157: 11.22464594 | F157: 14.42642296 | G157: 20.18373868 | H157: 25.21519521 | I157: 38.73276623 | J157: 45.73843465
B158: 52 | C158: 4.120208846 | D158: 7.914330737 | E158: 11.41960351 | F158: 14.66780303 | G158: 20.49837399 | H158: 25.58312385 | I158: 39.19456285 | J158: 46.22074425
B159: 53 | C159: 4.196118846 | D159: 8.054270912 | E159: 11.61370667 | F159: 14.9078252 | G159: 20.81053845 | H159: 25.94744992 | I159: 39.64945005 | J159: 46.69455527
B160: 54 | C160: 4.271908742 | D160: 8.193786406 | E160: 11.80696103 | F160: 15.14650088 | G160: 21.12026106 | H160: 26.30822607 | I160: 40.09758174 | J160: 47.16009038
B161: 55 | C161: 4.347578818 | D161: 8.332879148 | E161: 11.99937213 | F161: 15.38384139 | G161: 21.42757036 | H161: 26.66550394 | I161: 40.53910729 | J161: 47.61756453
B162: 56 | C162: 4.42312936 | D162: 8.471551058 | E162: 12.1909455 | F162: 15.61985788 | G162: 21.73249445 | H162: 27.01933416 | I162: 40.97417173 | J162: 48.06718529
B163: 57 | C163: 4.498560649 | D163: 8.609804042 | E163: 12.38168659 | F163: 15.85456141 | G163: 22.03506098 | H163: 27.36976641 | I163: 41.40291583 | J163: 48.50915316
B164: 58 | C164: 4.573872969 | D164: 8.747639996 | E164: 12.5716008 | F164: 16.08796291 | G164: 22.33529721 | H164: 27.71684938 | I164: 41.82547634 | J164: 48.94366188
B165: 59 | C165: 4.649066599 | D165: 8.885060804 | E165: 12.76069352 | F165: 16.32007318 | G165: 22.63322993 | H165: 28.06063087 | I165: 42.24198607 | J165: 49.37089871
B166: 60 | C166: 4.724141821 | D166: 9.022068339 | E166: 12.94897004 | F166: 16.55090291 | G166: 22.92888557 | H166: 28.40115777 | I166: 42.65257407 | J166: 49.79104469
B167: 61 | C167: 4.799098914 | D167: 9.158664462 | E167: 13.13643566 | F167: 16.78046265 | G167: 23.22229012 | H167: 28.73847606 | I167: 43.05736572 | J167: 50.20427488
B168: 62 | C168: 4.873938157 | D168: 9.294851023 | E168: 13.32309559 | F168: 17.00876288 | G168: 23.5134692 | H168: 29.0726309 | I168: 43.45648292 | J168: 50.61075866
B169: 63 | C169: 4.948659827 | D169: 9.430629862 | E169: 13.50895502 | F169: 17.23581391 | G169: 23.80244804 | H169: 29.40366657 | I169: 43.85004414 | J169: 51.0106599
B170: 64 | C170: 5.023264201 | D170: 9.566002807 | E170: 13.69401909 | F170: 17.46162598 | G170: 24.08925148 | H170: 29.73162654 | I170: 44.23816461 | J170: 51.4041372
B171: 65 | C171: 5.097751555 | D171: 9.700971676 | E171: 13.87829288 | F171: 17.68620921 | G171: 24.37390398 | H171: 30.05655348 | I171: 44.62095637 | J171: 51.79134413
B172: 66 | C172: 5.172122165 | D172: 9.835538274 | E172: 14.06178146 | F172: 17.90957358 | G172: 24.65642967 | H172: 30.37848928 | I172: 44.99852841 | J172: 52.17242939
B173: 67 | C173: 5.246376304 | D173: 9.969704398 | E173: 14.24448983 | F173: 18.13172901 | G173: 24.93685228 | H173: 30.69747504 | I173: 45.37098677 | J173: 52.54753701
B174: 68 | C174: 5.320514245 | D174: 10.10347183 | E174: 14.42642296 | F174: 18.35268528 | G174: 25.21519521 | H174: 31.01355112 | I174: 45.73843465 | J174: 52.91680654
B175: 69 | C175: 5.394536263 | D175: 10.23684235 | E175: 14.60758577 | F175: 18.57245207 | G175: 25.49148151 | H175: 31.32675717 | I175: 46.10097246 | J175: 53.28037322
B176: 70 | C176: 5.468442627 | D176: 10.36981772 | E176: 14.78798313 | F176: 18.79103896 | G176: 25.76573389 | H176: 31.63713209 | I176: 46.45869798 | J176: 53.63836816
B177: 71 | C177: 5.542233609 | D177: 10.50239969 | E177: 14.96761991 | F177: 19.00845542 | G177: 26.03797472 | H177: 31.9447141 | I177: 46.81170639 | J177: 53.99091845
B178: 72 | C178: 5.61590948 | D178: 10.63459001 | E178: 15.14650088 | F178: 19.22471084 | G178: 26.30822607 | H178: 32.24954073 | I178: 47.16009038 | J178: 54.33814737
B179: 73 | C179: 5.689470507 | D179: 10.76639041 | E179: 15.32463082 | F179: 19.43981449 | G179: 26.57650965 | H179: 32.55164884 | I179: 47.50394023 | J179: 54.68017451
B180: 74 | C180: =((B180-(B180/(((EXP(1/((C$46+$B$109)/$B$106)))*(B180*$C$112*$B$110))+1)))/B180)*100 -> 5.76291696 | D180: =((B180-(B180/(((EXP(1/((D$46+$B$109)/$B$106)))*(B180*$D$112*$B$110))+1)))/B180)*100 -> 10.8978026 | E180: =((B180-(B180/(((EXP(1/((E$46+$B$109)/$B$106)))*(B180*$E$112*$B$110))+1)))/B180)*100 -> 15.50201444 | F180: 19.65377555 | G180: 26.84284688 | H180: 32.85107462 | I180: 47.84334389 | J180: 55.01711587
B181: 75 | C181: 5.836249105 | D181: 11.02882832 | E181: 15.67865643 | F181: =((B181-(B181/(((EXP(1/((F$46+$B$109)/$B$106)))*(B181*$F$112*$B$110))+1)))/B181)*100 -> 19.86660309 | G181: =((B181-(B181/(((EXP(1/((G$46+$B$109)/$B$106)))*(B181*$G$112*$B$110))+1)))/B181)*100 -> 27.10725887 | H181: =((B181-(B181/(((EXP(1/((H$46+$B$109)/$B$106)))*(B181*$H$112*$B$110))+1)))/B181)*100 -> 33.14785366 | I181: =((B181-(B181/(((EXP(1/((I$46+$B$109)/$B$106)))*(B181*$I$112*$B$110))+1)))/B181)*100 -> 48.17838703 | J181: =((B181-(B181/(((EXP(1/((J$46+$B$109)/$B$106)))*(B181*$J$112*$B$110))+1)))/B181)*100 -> 55.34908406
B182: 76 | C182: 5.90946721 | D182: 11.15946924 | E182: 15.85456141 | F182: 20.0783061 | G182: 27.36976641 | H182: 33.44202088 | I182: 48.50915316 | J182: 55.67618838
B183: 77 | C183: 5.982571541 | D183: 11.28972708 | E183: 16.02973401 | F183: 20.28889346 | G183: 27.63039 | H183: 33.73361061 | I183: 48.83572365 | J183: 55.99853494
B184: 78 | C184: 6.055562361 | D184: 11.41960351 | E184: 16.20417878 | F184: 20.49837399 | G184: 27.88914986 | H184: 34.02265659 | I184: 49.15817783 | J184: 56.3162268
B185: 79 | C185: 6.128439936 | D185: 11.5491002 | E185: 16.37790025 | F185: 20.70675637 | G185: 28.1460659 | H185: 34.30919194 | I185: 49.47659303 | J185: 56.62936405
B186: 80 | C186: 6.201204529 | D186: 11.67821882 | E186: 16.55090291 | F186: 20.91404922 | G186: 28.40115777 | H186: 34.59324926 | I186: 49.79104469 | J186: 56.93804395
B187: 81 | C187: 6.273856403 | D187: 11.80696103 | E187: 16.7231912 | F187: 21.12026106 | G187: 28.65444481 | H187: 34.87486053 | I187: 50.10160633 | J187: 57.24236099
B188: 82 | C188: 6.346395818 | D188: 11.93532845 | E188: 16.89476956 | F188: 21.32540033 | G188: 28.90594613 | H188: 35.15405722 | I188: 50.4083497 | J188: 57.54240702
B189: 83 | C189: 6.418823036 | D189: 12.06332273 | E189: 17.06564234 | F189: 21.52947537 | G189: 29.15568053 | H189: 35.43087026 | I189: 50.7113448 | J189: 57.83827133
B190: 84 | C190: 6.491138318 | D190: 12.1909455 | E190: 17.23581391 | F190: 21.73249445 | G190: 29.40366657 | H190: 35.70533003 | I190: 51.0106599 | J190: 58.13004074
B191: 85 | C191: 6.563341921 | D191: 12.31819837 | E191: 17.40528856 | F191: 21.93446573 | G191: 29.64992255 | H191: 35.97746642 | I191: 51.30636164 | J191: 58.41779966
B192: 86 | C192: 6.635434106 | D192: 12.44508293 | E192: 17.57407057 | F192: 22.13539732 | G192: 29.8944665 | H192: 36.24730881 | I192: 51.59851506 | J192: 58.70163024
B193: 87 | C193: 6.707415129 | D193: 12.5716008 | E193: 17.74216418 | F193: 22.33529721 | G193: 30.13731623 | H193: 36.51488608 | I193: 51.88718365 | J193: 58.98161236
B194: 88 | C194: 6.779285248 | D194: 12.69775356 | E194: 17.90957358 | F194: 22.53417333 | G194: 30.37848928 | H194: 36.78022663 | I194: 52.17242939 | J194: 59.25782377
B195: 89 | C195: 6.851044718 | D195: 12.82354279 | E195: 18.07630296 | F195: 22.73203353 | G195: 30.61800294 | H195: 37.0433584 | I195: 52.4543128 | J195: 59.53034013
B196: 90 | C196: 6.922693795 | D196: 12.94897004 | E196: 18.24235643 | F196: 22.92888557 | G196: 30.8558743 | H196: 37.30430885 | I196: 52.73289298 | J196: 59.79923509
B197: 91 | C197: 6.994232734 | D197: 13.0740369 | E197: 18.40773811 | F197: 23.12473713 | G197: 31.09212017 | H197: 37.56310498 | I197: 53.00822766 | J197: 60.06458038
B198: 92 | C198: 7.065661788 | D198: 13.1987449 | E198: 18.57245207 | F198: 23.31959584 | G198: 31.32675717 | H198: 37.81977337 | I198: 53.28037322 | J198: 60.3264458
B199: 93 | C199: 7.13698121 | D199: 13.32309559 | E199: 18.73650233 | F199: 23.5134692 | G199: 31.55980168 | H199: 38.07434016 | I199: 53.54938476 | J199: 60.58489938
B200: 94 | C200: 7.208191253 | D200: 13.4470905 | E200: 18.8998929 | F200: 23.70636469 | G200: 31.79126985 | H200: 38.32683104 | I200: 53.81531609 | J200: 60.84000736
B201: 95 | C201: 7.279292167 | D201: 13.57073116 | E201: 19.06262776 | F201: 23.89828968 | G201: 32.02117763 | H201: 38.57727131 | I201: 54.07821983 | J201: 61.09183429
B202: 96 | C202: 7.350284204 | D202: 13.69401909 | E202: 19.22471084 | F202: 24.08925148 | G202: 32.24954073 | H202: 38.82568585 | I202: 54.33814737 | J202: 61.34044305
B203: 97 | C203: 7.421167613 | D203: 13.81695578 | E203: 19.38614605 | F203: 24.27925731 | G203: 32.47637468 | H203: 39.07209914 | I203: 54.59514899 | J203: 61.58589495
B204: 98 | C204: 7.491942644 | D204: 13.93954274 | E204: 19.54693727 | F204: 24.46831435 | G204: 32.70169478 | H204: 39.31653526 | I204: 54.84927379 | J204: 61.82824973
B205: 99 | C205: 7.562609545 | D205: 14.06178146 | E205: 19.70708835 | F205: 24.65642967 | G205: 32.92551614 | H205: 39.55901791 | I205: 55.10056983 | J205: 62.06756565
B206: 100 | C206: 7.633168563 | D206: 14.18367343 | E206: 19.86660309 | F206: 24.8436103 | G206: 33.14785366 | H206: 39.79957042 | I206: 55.34908406 | J206: 62.30389951
B207: 110 | C207: 8.332879148 | D207: 15.38384139 | E207: 21.42757036 | F207: 26.66550394 | G207: 35.29275978 | H207: 42.10381376 | I207: 57.69085641 | J207: 64.51476785
B208: 120 | C208: 9.022068339 | D208: 16.55090291 | E208: 22.92888557 | F208: 28.40115777 | G208: 37.30430885 | H208: 44.23816461 | I208: 59.79923509 | J208: 66.48066951
B209: 130 | C209: 9.700971676 | D209: 17.68620921 | E209: 24.37390398 | F209: 30.05655348 | G209: 39.19456285 | H209: 46.22074425 | I209: 61.7074558 | J209: 68.24018119
B210: 140 | C210: 10.36981772 | D210: 18.79103896 | E210: 25.76573389 | F210: 31.63713209 | G210: 40.97417173 | H210: 48.06718529 | I210: 63.44272976 | J210: 69.82418363
B211: 150 | C211: 11.02882832 | D211: 19.86660309 | E211: 27.10725887 | F211: 33.14785366 | G211: 42.65257407 | H211: 49.79104469 | I211: 65.02754956 | J211: 71.2576896
B212: 160 | C212: 11.67821882 | D212: 20.91404922 | E212: 28.40115777 | F212: 34.59324926 | G212: 44.23816461 | H212: 51.4041372 | I212: 66.48066951 | J212: 72.56117448
B213: 170 | C213: 12.31819837 | D213: 21.93446573 | E213: 29.64992255 | F213: 35.97746642 | G213: 45.73843465 | H213: 52.91680654 | I213: 67.81785126 | J213: 73.75156048
B214: 180 | C214: 12.94897004 | D214: 22.92888557 | E214: 30.8558743 | F214: 37.30430885 | G214: 47.16009038 | H214: 54.33814737 | I214: 69.05243782 | J214: 74.84295536
B215: 190 | C215: 13.57073116 | D215: 23.89828968 | E215: 32.02117763 | F215: 38.57727131 | G215: 48.50915316 | H215: 55.67618838 | I215: 70.1958004 | J215: 75.84721418
B216: 200 | C216: 14.18367343 | D216: 24.8436103 | E216: 33.14785366 | F216: 39.79957042 | G216: 49.79104469 | H216: 56.93804395 | I216: 71.2576896 | J216: 76.77437166
B217: 210 | C217: 14.78798313 | D217: 25.76573389 | E217: 34.23779168 | F217: 40.97417173 | G217: 51.0106599 | H217: 58.13004074 | I217: 72.24651424 | J217: 77.63297866
B218: 220 | C218: 15.38384139 | D218: 26.66550394 | E218: 35.29275978 | F218: 42.10381376 | G218: 52.17242939 | H218: 59.25782377 | I218: 73.16956445 | J218: 78.4303667
B219: 230 | C219: 15.97142424 | D219: 27.54372354 | E219: 36.31441436 | F219: 43.19102936 | G219: 53.28037322 | H219: 60.3264458 | I219: 74.03319175 | J219: 79.17285779
B220: 240 | C220: 16.55090291 | D220: 28.40115777 | E220: 37.30430885 | F220: 44.23816461 | G220: 54.33814737 | H220: 61.34044305 | I220: 74.84295536 | J220: 79.86593243
B221: 250 | C221: 17.1224439 | D221: 29.23853589 | E221: 38.26390155 | F221: 45.24739574 | G221: 55.34908406 | H221: 62.30389951 | I221: 75.60374205 | J221: 80.5143651
B222: 260 | C222: 17.68620921 | D222: 30.05655348 | E222: 39.19456285 | F222: 46.22074425 | G222: 56.3162268 | H222: 63.22050197 | I222: 76.31986478 | J222: 81.1223344
B223: 270 | C223: 18.24235643 | D223: 30.8558743 | E223: 40.09758174 | F223: 47.16009038 | G223: 57.24236099 | H223: 64.09358714 | I223: 76.99514457 | J223: 81.69351322
B224: 280 | C224: 18.79103896 | D224: 31.63713209 | E224: 40.97417173 | F224: 48.06718529 | G224: 58.13004074 | H224: 64.92618225 | I224: 77.63297866 | J224: 82.23114299
B225: 290 | C225: 19.33240606 | D225: 32.40093232 | E225: 41.82547634 | F225: 48.94366188 | G225: 58.98161236 | H225: 65.72104011 | I225: 78.23639769 | J225: 82.73809519
B226: 300 | C226: 19.86660309 | D226: 33.14785366 | E226: 42.65257407 | F226: 49.79104469 | G226: 59.79923509 | H226: 66.48066951 | I226: 78.80811384 | J226: 83.21692272
B227: 310 | C227: 20.39377153 | D227: 33.87844948 | E227: 43.45648292 | F227: 50.61075866 | G227: 60.58489938 | H227: 67.20736169 | I227: 79.3505616 | J227: 83.66990286
B228: 320 | C228: 20.91404922 | D228: 34.59324926 | E228: 44.23816461 | F228: 51.4041372 | G228: 61.34044305 | H228: 67.90321342 | I228: 79.86593243 | J228: 84.0990735
B229: 330 | C229: 21.42757036 | D229: 35.29275978 | E229: 44.99852841 | F229: 52.17242939 | G229: 62.06756565 | H229: 68.57014717 | I229: 80.35620432 | J229: 84.50626377
B230: 340 | C230: 21.93446573 | D230: 35.97746642 | E230: 45.73843465 | F230: 52.91680654 | G230: 62.76784125 | H230: 69.2099289 | I230: 80.8231672 | J230: 84.89312013
B231: 350 | C231: 22.43486275 | D231: 36.64783419 | E231: 46.45869798 | F231: 53.63836816 | G231: 63.44272976 | H231: 69.82418363 | I231: 81.26844474 | J231: 85.26112859
B232: 360 | C232: 22.92888557 | D232: 37.30430885 | E232: 47.16009038 | F232: 54.33814737 | G232: 64.09358714 | H232: 70.41440927 | I232: 81.69351322 | J232: 85.61163383
B233: 370 | C233: 23.41665522 | D233: 37.94731785 | E233: 47.84334389 | F233: 55.01711587 | G233: 64.72167448 | H233: 70.98198875 | I233: 82.09971793 | J233: 85.94585557
B234: 380 | C234: 23.89828968 | D234: 38.57727131 | E234: 48.50915316 | F234: 55.67618838 | G234: 65.32816614 | H234: 71.52820089 | I234: 82.4882873 | J234: 86.26490278
B235: 390 | C235: 24.37390398 | D235: 39.19456285 | E235: 49.15817783 | F235: 56.3162268 | G235: 65.91415709 | H235: 72.05423001 | I235: 82.86034539 | J235: 86.56978597
B236: 400 | C236: 24.8436103 | D236: 39.79957042 | E236: 49.79104469 | F236: 56.93804395 | G236: 66.48066951 | H236: 72.56117448 | I236: 83.21692272 | J236: 86.86142786
B237: 410 | C237: 25.30751803 | D237: 40.39265708 | E237: 50.4083497 | F237: 57.54240702 | G237: 67.02865872 | H237: 73.05005441 | I237: 83.55896579 | J237: 87.14067274
B238: 420 | C238: 25.76573389 | D238: 40.97417173 | E238: 51.0106599 | F238: 58.13004074 | G238: 67.55901859 | H238: 73.52181845 | I238: 83.88734548 | J238: 87.40829461
B239: 430 | C239: 26.21836199 | D239: 41.54444976 | E239: 51.59851506 | F239: 58.70163024 | G239: 68.07258638 | H239: 73.97735001 | I239: 84.20286447 | J239: 87.66500436
B240: 440 | C240: 26.66550394 | D240: 42.10381376 | E240: 52.17242939 | F240: 59.25782377 | G240: 68.57014717 | H240: 74.41747271 | I240: 84.50626377 | J240: 87.91145605
B241: 450 | C241: 27.10725887 | D241: 42.65257407 | E241: 52.73289298 | F241: 59.79923509 | G241: 69.05243782 | H241: 74.84295536 | I241: 84.79822852 | J241: 88.1482525
B242: 460 | C242: 27.54372354 | D242: 43.19102936 | E242: 53.28037322 | F242: 60.3264458 | G242: 69.52015069 | H242: 75.2545165 | I242: 85.07939319 | J242: 88.3759502
B243: 470 | C243: 27.97499243 | D243: 43.71946722 | E243: 53.81531609 | F243: 60.84000736 | G243: 69.97393687 | H243: 75.65282837 | I243: 85.35034616 | J243: 88.5950637
B244: 480 | C244: =((B244-(B244/(((EXP(1/((C$46+$B$109)/$B$106)))*(B244*$C$112*$B$110))+1)))/B244)*100 -> 28.40115777 | D244: =((B244-(B244/(((EXP(1/((D$46+$B$109)/$B$106)))*(B244*$D$112*$B$110))+1)))/B244)*100 -> 44.23816461 | E244: =((B244-(B244/(((EXP(1/((E$46+$B$109)/$B$106)))*(B244*$E$112*$B$110))+1)))/B244)*100 -> 54.33814737 | F244: 61.34044305 | G244: 70.41440927 | H244: 76.03852065 | I244: 85.61163383 | J244: 88.80606944
B245: 490 | C245: 28.8223096 | D245: 44.74738839 | E245: 54.84927379 | F245: =((B245-(B245/(((EXP(1/((F$46+$B$109)/$B$106)))*(B245*$F$112*$B$110))+1)))/B245)*100 -> 61.82824973 | G245: =((B245-(B245/(((EXP(1/((G$46+$B$109)/$B$106)))*(B245*$G$112*$B$110))+1)))/B245)*100 -> 70.84214533 | H245: =((B245-(B245/(((EXP(1/((H$46+$B$109)/$B$106)))*(B245*$H$112*$B$110))+1)))/B245)*100 -> 76.4121837 | I245: =((B245-(B245/(((EXP(1/((I$46+$B$109)/$B$106)))*(B245*$I$112*$B$110))+1)))/B245)*100 -> 85.8637643 | J245: =((B245-(B245/(((EXP(1/((J$46+$B$109)/$B$106)))*(B245*$J$112*$B$110))+1)))/B245)*100 -> 89.00940927
B246: 500 | C246: 29.23853589 | D246: 45.24739574 | E246: 55.34908406 | F246: 62.30389951 | G246: 71.2576896 | H246: 76.77437166 | I246: 86.10721066 | J246: 89.20549348
B247: 510 | C247: 29.64992255 | D247: 45.73843465 | E247: 55.83794987 | F247: 62.76784125 | G247: 71.66155601 | H247: 77.12560511 | I247: 86.34241399 | J247: 89.39470362
B248: 520 | C248: 30.05655348 | D248: 46.22074425 | E248: 56.3162268 | F248: 63.22050197 | G248: 72.05423001 | H248: 77.46637366 | I248: 86.56978597 | J248: 89.57739493
B249: 530 | C249: 30.45851069 | D249: 46.69455527 | E249: 56.7842552 | F249: 63.6622882 | G249: 72.43617049 | H249: 77.79713812 | I249: 86.78971133 | J249: 89.7538986
B250: 540 | C250: 30.8558743 | D250: 47.16009038 | E250: 57.24236099 | F250: 64.09358714 | G250: 72.80781162 | H250: 78.11833266 | I250: 87.00254999 | J250: 89.92452375
B251: 550 | C251: 31.24872259 | D251: 47.61756453 | E251: 57.69085641 | F251: 64.51476785 | G251: 73.16956445 | H251: 78.4303667 | I251: 87.20863907 | J251: 90.08955924
B252: 560 | C252: 31.63713209 | D252: 48.06718529 | E252: 58.13004074 | F252: 64.92618225 | G252: 73.52181845 | H252: 78.7336266 | I252: 87.40829461 | J252: 90.24927533
B253: 570 | C253: 32.02117763 | D253: 48.50915316 | E253: 58.56020095 | F253: 65.32816614 | G253: 73.8649429 | H253: 79.02847732 | I253: 87.60181325 | J253: 90.40392512
B254: 580 | C254: 32.40093232 | D254: 48.94366188 | E254: 58.98161236 | F254: 65.72104011 | G254: 74.19928819 | H254: 79.31526385 | I254: 87.78947365 | J254: 90.5537459
B255: 590 | C255: 32.77646769 | D255: 49.37089871 | E255: 59.39453918 | F255: 66.10511035 | G255: 74.52518698 | H255: 79.59431255 | I255: 87.97153785 | J255: 90.69896038
B256: 600 | C256: 33.14785366 | D256: 49.79104469 | E256: 59.79923509 | F256: 66.48066951 | G256: 74.84295536 | H256: 79.86593243 | I256: 88.1482525 | J256: 90.83977777
B257: 610 | C257: 33.51515862 | D257: 50.20427488 | E257: 60.19594378 | F257: 66.8479974 | G257: 75.15289384 | H257: 80.13041623 | I257: 88.31984997 | J257: 90.97639482
B258: 620 | C258: 33.87844948 | D258: 50.61075866 | E258: 60.58489938 | F258: 67.20736169 | G258: 75.45528828 | H258: 80.38804155 | I258: 88.48654935 | J258: 91.10899669
B259: 630 | C259: 34.23779168 | D259: 51.0106599 | E259: 60.96632699 | F259: 67.55901859 | G259: 75.75041082 | H259: 80.63907172 | I259: 88.64855741 | J259: 91.23775784
B260: 640 | C260: 34.59324926 | D260: 51.4041372 | E260: 61.34044305 | F260: 67.90321342 | G260: 76.03852065 | H260: 80.88375682 | I260: 88.80606944 | J260: 91.36284274
B261: 650 | C261: 34.94488485 | D261: 51.79134413 | E261: 61.7074558 | F261: 68.24018119 | G261: 76.31986478 | H261: 81.1223344 | I261: 88.95927004 | J261: 91.48440661
B262: 660 | C262: 35.29275978 | D262: 52.17242939 | E262: 62.06756565 | F262: 68.57014717 | G262: 76.59467877 | H262: 81.35503032 | I262: 89.10833384 | J262: 91.60259608
B263: 670 | C263: 35.63693406 | D263: 52.54753701 | E263: 62.42096553 | F263: 68.89332734 | G263: 76.86318737 | H263: 81.58205943 | I263: 89.25342615 | J263: 91.71754971
B264: 680 | C264: 35.97746642 | D264: 52.91680654 | E264: 62.76784125 | F264: 69.2099289 | G264: 77.12560511 | H264: 81.80362624 | I264: 89.39470362 | J264: 91.82939859
B265: 690 | C265: 36.31441436 | D265: 53.28037322 | E265: 63.10837181 | F265: 69.52015069 | G265: 77.38213693 | H265: 82.01992555 | I265: 89.53231474 | J265: 91.93826684
B266: 700 | C266: 36.64783419 | D266: 53.63836816 | E266: 63.44272976 | F266: 69.82418363 | G266: 77.63297866 | H266: 82.23114299 | I266: 89.66640041 | J266: 92.04427204
B267: 710 | C267: 36.97778102 | D267: 53.99091845 | E267: 63.7710814 | F267: 70.12221109 | G267: 77.87831753 | H267: 82.43745557 | I267: 89.79709438 | J267: 92.14752565
B268: 720 | C268: 37.30430885 | D268: 54.33814737 | E268: 64.09358714 | F268: 70.41440927 | G268: 78.11833266 | H268: 82.63903219 | I268: 89.92452375 | J268: 92.24813344
B269: 730 | C269: 37.62747053 | D269: 54.68017451 | E269: 64.41040173 | F269: 70.70094753 | G269: 78.35319548 | H269: 82.83603407 | I269: 90.04880932 | J269: 92.34619582
B270: 740 | C270: 37.94731785 | D270: 55.01711587 | E270: 64.72167448 | F270: 70.98198875 | G270: 78.58307012 | H270: 83.0286152 | I270: 90.17006601 | J270: 92.44180819
B271: 750 | C271: 38.26390155 | D271: 55.34908406 | E271: 65.02754956 | F271: 71.2576896 | G271: 78.80811384 | H271: 83.21692272 | I271: 90.28840321 | J271: 92.53506122
B272: 760 | C272: 38.57727131 | D272: 55.67618838 | E272: 65.32816614 | F272: 71.52820089 | G272: 79.02847732 | H272: 83.40109733 | I272: 90.40392512 | J272: 92.62604119
B273: 770 | C273: 38.88747584 | D273: 55.99853494 | E273: 65.62365869 | F273: 71.79366776 | G273: 79.24430508 | H273: 83.58127362 | I273: 90.516731 | J273: 92.71483019
B274: 780 | C274: 39.19456285 | D274: 56.3162268 | E274: 65.91415709 | F274: 72.05423001 | G274: 79.45573572 | H274: 83.75758039 | I274: 90.62691554 | J274: 92.80150644
B275: 790 | C275: 39.4985791 | D275: 56.62936405 | E275: 66.19978691 | F275: 72.31002232 | G275: 79.66290227 | H275: 83.93014097 | I275: 90.73456906 | J275: 92.88614445
B276: 800 | C276: 39.79957042 | D276: 56.93804395 | E276: 66.48066951 | F276: 72.56117448 | G276: 79.86593243 | H276: 84.0990735 | I276: 90.83977777 | J276: 92.96881529
B277: 810 | C277: 40.09758174 | D277: 57.24236099 | E277: 66.75692227 | F277: 72.80781162 | G277: 80.06494886 | H277: 84.26449121 | I277: 90.94262402 | J277: 93.04958675
B278: 820 | C278: 40.39265708 | D278: 57.54240702 | E278: 67.02865872 | F278: 73.05005441 | G278: 80.26006942 | H278: 84.42650267 | I278: 91.04318651 | J278: 93.12852355
B279: 830 | C279: 40.68483963 | D279: 57.83827133 | E279: 67.29598872 | F279: 73.28801924 | G279: 80.45140739 | H279: 84.58521202 | I279: 91.14154046 | J279: 93.20568749
B280: 840 | C280: 40.97417173 | D280: 58.13004074 | E280: 67.55901859 | F280: 73.52181845 | G280: 80.63907172 | H280: 84.74071919 | I280: 91.23775784 | J280: 93.28113763
B281: 850 | C281: 41.26069487 | D281: 58.41779966 | E281: 67.81785126 | F281: 73.75156048 | G281: 80.8231672 | H281: 84.89312013 | I281: 91.33190752 | J281: 93.35493045
B282: 860 | C282: 41.54444976 | D282: 58.70163024 | E282: 68.07258638 | F282: 73.97735001 | G282: 81.00379467 | H282: 85.04250698 | I282: 91.42405544 | J282: 93.42711995
B283: 870 | C283: 41.82547634 | D283: 58.98161236 | E283: 68.32332051 | F283: 74.19928819 | G283: 81.18105121 | H283: 85.18896829 | I283: 91.51426479 | J283: 93.49775783
B284: 880 | C284: 42.10381376 | D284: 59.25782377 | E284: 68.57014717 | F284: 74.41747271 | G284: 81.35503032 | H284: 85.33258916 | I284: 91.60259608 | J284: 93.56689358
B285: 890 | C285: 42.37950044 | D285: 59.53034013 | E285: 68.81315699 | F285: 74.631998 | G285: 81.52582206 | H285: 85.47345144 | I285: 91.68910737 | J285: 93.63457461
B286: 900 | C286: 42.65257407 | D286: 59.79923509 | E286: 69.05243782 | F286: 74.84295536 | G286: 81.69351322 | H286: 85.61163383 | I286: 91.77385433 | J286: 93.70084636
B287: 910 | C287: 42.92307161 | D287: 60.06458038 | E287: 69.28807486 | F287: 75.05043306 | G287: 81.85818749 | H287: 85.7472121 | I287: 91.85689039 | J287: 93.76575239
B288: 920 | C288: 43.19102936 | D288: 60.3264458 | E288: 69.52015069 | F288: 75.2545165 | G288: 82.01992555 | H288: 85.88025918 | I288: 91.93826684 | J288: 93.82933449
B289: 930 | C289: 43.45648292 | D289: 60.58489938 | E289: 69.74874545 | F289: 75.45528828 | G289: 82.17880523 | H289: 86.01084529 | I289: 92.01803295 | J289: 93.89163275
B290: 940 | C290: 43.71946722 | D290: 60.84000736 | E290: 69.97393687 | F290: 75.65282837 | G290: 82.33490164 | H290: 86.13903809 | I290: 92.09623605 | J290: 93.95268568
B291: 950 | C291: 43.98001656 | D291: 61.09183429 | E291: 70.1958004 | F291: 75.84721418 | G291: 82.4882873 | H291: 86.26490278 | I291: 92.17292163 | J291: 94.01253024
B292: 960 | C292: 44.23816461 | D292: 61.34044305 | E292: 70.41440927 | F292: 76.03852065 | G292: 82.63903219 | H292: 86.38850221 | I292: 92.24813344 | J292: 94.07120195
B293: 970 | C293: 44.4939444 | D293: 61.58589495 | E293: 70.62983456 | F293: 76.22682038 | G293: 82.78720394 | H293: 86.50989698 | I293: 92.32191356 | J293: 94.12873497
... 93 more rows

Sheet Info
A3: This spreadsheet was modified from the original Caxbd_o2010 spreadsheet with permission from the original author David Fisher (De Beers UK Ltd, Maidenhead)
A5: This spreadsheet was developed for deconvolution of the N-region of Type Ib + IaA diamonds that show absorption due to Y-centers.
A6: The N-region of Type IaA, IaAB and IaB diamonds can also be deconvoluted using this spreadsheet.
A8: In this version, the spectrum of the Y-center (taken from Hainschwang et al. 2012) was included in the deconvolution/fitting routine.
A9: Additional options for refining the C- and X-center contents were added.
A10: A description of this new deconvolution routine is given by Day et al. 2025.
A13: References:
A15: [1] T. Hainschwang, E. Fritsch, F. Notari, B. Rondeau, A new defect center in type Ib diamond inducing one phonon infrared absorption:
A16: The Y center, Diam Relat Mater 21 (2012) 120–126. https://doi.org/10.1016/j.diamond.2011.11.002.
A18: [2] Day et al. 2025 (this paper)
A20: In addition to citing David Fisher (De Beers UK Ltd, Maidenhead), please cite the above two references if publishing data obtained by using this spreadsheet.
A22: The calculation routine for determining residence time/temperature was modified from the DiaMap spreadsheet and the C to A aggregation activation energy (5.5 eV) was used from Kiflawi et al. 1997.
A23: Therefore, if data from the "Residence T/t" tab is used, please cite the following references;
A25: D. Howell, C.J. O’Neill, K.J. Grant, W.L. Griffin, N.J. Pearson, S.Y. O’Reilly, μ-FTIR mapping: Distribution of impurities in different types of diamond growth,
A26: Diam Relat Mater 29 (2012). https://doi.org/10.1016/j.diamond.2012.06.003.
A28: D. Howell, C.J. O’Neill, K.J. Grant, W.L. Griffin, S.Y. O’Reilly, N.J. Pearson, R.A. Stern, T. Stachel, Platelet development in cuboid diamonds: insights from micro-FTIR mapping,
A29: Contributions to Mineralogy and Petrology 164 (2012) 1011–1025. https://doi.org/10.1007/s00410-012-0786-9.
A31: I. Kiflawi, H. Kanda, D. Fisher, S.C. Lawson, The aggregation of nitrogen and the formation of A centres in diamonds,
A32: Diam Relat Mater 6 (1997) 1643–1649. https://doi.org/10.1016/S0925-9635(97)00207-0.
A35: Note that separate C to A activation energies were not used for cuboid and octahedral morphologies/growth sectors as shown in Taylor et al. 1996,
A36: as such difference have since be shown to be related to the rate-enhancing effect of transitional metal impurities such as Ni and Co (e.g., see Fisher and Lawson, 1998; Jones et al. 2015)
A38: Note that both the activation energies and C to A (or A to B) aggregation rate constants (A) can be easily changed in both Residence T calculation tabs.
A41: References:
A43: D. Fisher, S.C. Lawson, The effect of nickel and cobalt on the aggregation of nitrogen in diamond,
A44: Diam Relat Mater 7 (1998) 299–304. https://doi.org/10.1016/S0925-9635(97)00246-X.
A46: R. Jones, J.P. Goss, H. Pinto, D.W. Palmer, Diffusion of nitrogen in diamond and the formation of A-centres,
A47: Diam Relat Mater 53 (2015) 35–39. https://doi.org/10.1016/j.diamond.2015.01.002.
